Workbook

Sheet 총괄표
A1: 구 분 | C1: 합계 | D1: 농 지 면 적 | L1: 비농지
D2: 소계 | F2: 경 지 면 적 | K2: 개량 시설
E3: % | F3: 계 | G3: % | H3: 답 | I3: 전 | J3: 과수
A4: 계 | C4: =SUM(C5:C21) -> 10,894.9 | D4: =SUM(D5:D21) -> 8,410.7 | E4: =IF(D4=0,0,D4/C4) -> (77.2%) | F4: =SUM(F5:F21) -> 8,366.6 | G4: =IF(F4=0,0,F4/C4) -> (76.8%) | H4: =SUM(H5:H21) -> 7,391.4 | I4: =SUM(I5:I21) -> 918.7 | J4: 56.5 | K4: 44.1 | L4: 2,484.2
A5: 진흥구역 | B5: 1) 집단화된 경지정리 진흥구역 | C5: =SUM(D5,L5) -> 7,006.8 | D5: =SUM(F5,K5) -> 5,577.6 | E5: =IF(D5=0,0,D5/$C$4) -> (51.2%) | F5: =SUM(H5:J5) -> 5,577.6 | G5: =IF(F5=0,0,F5/$C$4) -> (51.2%) | H5: 5,514.6 | I5: 52.7 | J5: 10.3 | K5: 0 | L5: 1,429.2
B6: 2) 집단화 규모 미만 단독 경지정리 진흥구역 | C6: =SUM(D6,L6) -> 40.3 | D6: =SUM(F6,K6) -> 32.3 | E6: (0.3%) | F6: =SUM(H6:J6) -> 32.3 | G6: (0.3%) | H6: 32.2 | I6: 0.1 | J6: 0 | K6: 0 | L6: 8.0
B7: 3) 집단화된 미경지정리 진흥구역 | C7: 1,466.9 | D7: 1,167.9 | E7: (10.7%) | F7: =SUM(H7:J7) -> 1,167.9 | G7: (10.7%) | H7: 722.1 | I7: 408.3 | J7: 37.5 | K7: 0 | L7: 299.0
B8: 4) 경지정리 사이, 외곽 미경지정리 진흥구역 | C8: 79.7 | D8: 65.6 | E8: (0.6%) | F8: 65.6 | G8: (0.6%) | H8: 39.3 | I8: 26.2 | J8: 0 | K8: 0 | L8: 14.2
B9: 5) 도로면적(-12유형) | C9: 113.6 | D9: 21.3 | E9: (0.2%) | F9: 4.0 | G9: (0.0%) | H9: 3.3 | I9: 0.6 | J9: 0.1 | K9: 17.3 | L9: 92.3
A10: 변경지역 | B10: 1) 여건변화 분리(3~5ha) 진흥구역 | C10: 81.5 | D10: 69.2 | E10: (0.6%) | F10: 69.2 | G10: (0.6%) | H10: 61.4 | I10: 6.9 | J10: 0.8 | K10: 0 | L10: 12.3
B11: 2) 경지정리 사이, 외곽 미경지정리 진흥구역(5ha 이하) | C11: 394.4 | D11: 324.5 | E11: (3.0%) | F11: 324.5 | G11: (3.0%) | H11: 185.8 | I11: 135.1 | J11: 3.6 | K11: 0 | L11: 69.9
B12: 3) 주변개발 등 단독 3~5ha 경지정리 | C12: 54.0 | D12: 44.6 | E12: (0.4%) | F12: 44.6 | G12: (0.4%) | H12: 44.5 | I12: 0.1 | J12: 0 | K12: 0 | L12: 9.4
B13: 4) 주변개발 등 단독 3~5ha 미경지정리 | C13: 4.4 | D13: 4.3 | E13: (0.0%) | F13: 4.3 | G13: (0.0%) | H13: 4.1 | I13: 0.1 | J13: 0 | K13: 0 | L13: 0.1
A14: 보호구역 | B14: 1) D지역 제외 보호구역(도로제외) | C14: 654.9 | D14: 402.3 | E14: (3.7%) | F14: 402.3 | G14: (3.7%) | H14: 301.8 | I14: 100.3 | J14: 0.2 | K14: 0 | L14: 252.5
B15: 2) 도로면적(-12유형) | C15: 1.7 | D15: 0.2 | E15: (0.0%) | F15: 0.0 | G15: (0.0%) | H15: 0.0 | I15: 0 | J15: 0 | K15: 0.2 | L15: 1.5
A16: 해제지역 | B16: 1) '07, '08년 해제기준 적용지역 | C16: 928.3 | D16: 670.4 | E16: (6.2%) | F16: 643.9 | G16: (5.9%) | H16: 454.7 | I16: 185.1 | J16: 4.0 | K16: 26.5 | L16: 257.9
B17: 2) 단독 3ha이하 | C17: 17.1 | D17: 13.6 | E17: (0.1%) | F17: 13.6 | G17: (0.1%) | H17: 13.3 | I17: 0.3 | J17: 0 | K17: 0 | L17: 3.5
B18: 3) 도시지역 미경지정리(진흥구역) | C18: 18.2 | D18: 14.0 | E18: (0.1%) | F18: 14.0 | G18: (0.1%) | H18: 13.0 | I18: 1.0 | J18: 0 | K18: 0 | L18: 4.1
B19: 4) 자연취락 지구 | C19: 4.1 | D19: 2.9 | E19: (0.0%) | F19: 2.9 | G19: (0.0%) | H19: 1.1 | I19: 1.8 | J19: 0 | K19: 0 | L19: 1.2
B20: 5) 비농지 | C20: 29.1 | D20: 0 | E20: (0.0%) | F20: 0 | G20: (0.0%) | H20: 0 | I20: 0 | J20: 0 | K20: 0 | L20: 29.1
B21: 6) 기해제 대상지역 | C21: 0 | D21: 0 | E21: (0.0%) | F21: 0 | G21: (0.0%) | H21: 0 | I21: 0 | J21: 0 | K21: 0 | L21: 0

Sheet 변경해제 집계표
A1: 구 분 | C1: 계 | D1: 농 지 면 적 | L1: 비농지
D2: 소계 | F2: 소계 | G2: 순농지 면적 | K2: 기타 농지
E3: % | G3: % | H3: 답 | I3: 전 | J3: 과수
A4: 계(A+B) | C4: =SUM(D4,L4) -> 1,531.0 | D4: =SUM(F4,K4) -> 1,143.5 | E4: =IF(D4=0,0,D4/C4) -> (74.7%) | F4: =SUM(H4:J4) -> 1,117.0 | G4: =IF(F4=0,0,F4/C4) -> (73.0%) | H4: 778.0 | I4: 330.5 | J4: 8.4 | K4: 26.5 | L4: 387.5
A5: 변경지역(A) | C5: =SUM(D5,L5) -> 534.3 | D5: =SUM(F5,K5) -> 442.6 | E5: (82.8%) | F5: =SUM(H5:J5) -> 442.6 | G5: =IF(F5=0,0,F5/C5) -> (82.8%) | H5: 295.9 | I5: 142.3 | J5: 4.4 | K5: 0 | L5: 91.7
A6: 해제지역(B) | C6: 996.7 | D6: 701.0 | E6: (70.3%) | F6: 674.4 | G6: =IF(F6=0,0,F6/C6) -> (67.7%) | H6: 482.1 | I6: 188.3 | J6: 4.0 | K6: 26.5 | L6: 295.8
B7: 진흥구역 | C7: 291.7 | D7: 138.9 | E7: (47.6%) | F7: 114.1 | G7: =IF(F7=0,0,F7/C7) -> (39.1%) | H7: 99.7 | I7: 12.8 | J7: 1.5 | K7: 24.8 | L7: 152.8
B8: 보호구역 | C8: 705.0 | D8: 562.1 | E8: =IF(D8=0,0,D8/C8) -> (79.7%) | F8: 560.4 | G8: =IF(F8=0,0,F8/C8) -> (79.5%) | H8: 382.4 | I8: 175.4 | J8: 2.5 | K8: 1.7 | L8: 143.0

Sheet 변경조서
A1: 도엽번호 | B1: PNU코드 | C1: 시군구 | D1: 읍면 | E1: 리동 | F1: 지번 | G1: 지목 | H1: 면적_전체 | I1: 면적_부분 | J1: 소권역번호 | K1: 유형번호_상위 | L1: 유형번호_하위 | M1: 진흥지역용도구분
A2: 예천047 | B2: 4790039021100500005 | C2: 경상북도 예천군 | D2: 개포면 | E2: 금리 | F2: 50-5도 | G2: 도로 | H2: 50.76023037 | I2: 50.7602 | J2: 178-2 | K2: 12 | L2: 3 | M2: 변경지역
A3: 예천047 | B3: 4790039021100500006 | C3: 경상북도 예천군 | D3: 개포면 | E3: 금리 | F3: 50-6도 | G3: 도로 | H3: 169.9923502 | I3: 169.5949 | J3: 178-2 | K3: 12 | L3: 3 | M3: 변경지역
A4: 예천047 | B4: 4790039021100510001 | C4: 경상북도 예천군 | D4: 개포면 | E4: 금리 | F4: 51-1도 | G4: 도로 | H4: 211.2094838 | I4: 211.2095 | J4: 178-2 | K4: 12 | L4: 3 | M4: 변경지역
A5: 예천047 | B5: 4790039021100510006 | C5: 경상북도 예천군 | D5: 개포면 | E5: 금리 | F5: 51-6전 | G5: 전 | H5: 5.582575487 | I5: 5.5826 | J5: 178-2 | K5: 12 | L5: 3 | M5: 변경지역
A6: 예천047 | B6: 4790039021100510007 | C6: 경상북도 예천군 | D6: 개포면 | E6: 금리 | F6: 51-7도 | G6: 도로 | H6: 73.8471915 | I6: 73.8472 | J6: 178-2 | K6: 12 | L6: 3 | M6: 변경지역
A7: 예천047 | B7: 4790039021100520000 | C7: 경상북도 예천군 | D7: 개포면 | E7: 금리 | F7: 52 답 | G7: 답 | H7: 5368.227897 | I7: 5368.2279 | J7: 178-2 | K7: 12 | L7: 3 | M7: 변경지역
A8: 예천047 | B8: 4790039021100520002 | C8: 경상북도 예천군 | D8: 개포면 | E8: 금리 | F8: 52-2답 | G8: 답 | H8: 39.01984763 | I8: 39.0198 | J8: 178-2 | K8: 12 | L8: 3 | M8: 변경지역
A9: 예천047 | B9: 4790039021100550001 | C9: 경상북도 예천군 | D9: 개포면 | E9: 금리 | F9: 55-1 답 | G9: 답 | H9: 1190.179418 | I9: 1190.1794 | J9: 178-2 | K9: 12 | L9: 3 | M9: 변경지역
A10: 예천047 | B10: 4790039021100550004 | C10: 경상북도 예천군 | D10: 개포면 | E10: 금리 | F10: 55-4구 | G10: 구거 | H10: 40.23006644 | I10: 40.2301 | J10: 178-2 | K10: 12 | L10: 3 | M10: 변경지역
A11: 예천047 | B11: 4790039021100550005 | C11: 경상북도 예천군 | D11: 개포면 | E11: 금리 | F11: 55-5답 | G11: 답 | H11: 150.4531217 | I11: 150.4531 | J11: 178-2 | K11: 12 | L11: 3 | M11: 변경지역
A12: 예천047 | B12: 4790039021102430000 | C12: 경상북도 예천군 | D12: 개포면 | E12: 금리 | F12: 243 답 | G12: 답 | H12: 2714.888661 | I12: 2714.8887 | J12: 178-2 | K12: 12 | L12: 3 | M12: 변경지역
A13: 예천047 | B13: 4790039021102430001 | C13: 경상북도 예천군 | D13: 개포면 | E13: 금리 | F13: 243-1구 | G13: 구거 | H13: 23.21148997 | I13: 23.2115 | J13: 178-2 | K13: 12 | L13: 3 | M13: 변경지역
A14: 예천047 | B14: 4790039021102430002 | C14: 경상북도 예천군 | D14: 개포면 | E14: 금리 | F14: 243-2구 | G14: 구거 | H14: 142.3652288 | I14: 142.3652 | J14: 178-2 | K14: 12 | L14: 3 | M14: 변경지역
A15: 예천047 | B15: 4790039021102430003 | C15: 경상북도 예천군 | D15: 개포면 | E15: 금리 | F15: 243-3구 | G15: 구거 | H15: 5.833591495 | I15: 5.8336 | J15: 178-2 | K15: 12 | L15: 3 | M15: 변경지역
A16: 예천047 | B16: 4790039021102430004 | C16: 경상북도 예천군 | D16: 개포면 | E16: 금리 | F16: 243-4답 | G16: 답 | H16: 212.3715177 | I16: 212.3715 | J16: 178-2 | K16: 12 | L16: 3 | M16: 변경지역
A17: 예천047 | B17: 4790039021102430005 | C17: 경상북도 예천군 | D17: 개포면 | E17: 금리 | F17: 243-5 답 | G17: 답 | H17: 1960.935949 | I17: 1960.9359 | J17: 178-2 | K17: 12 | L17: 3 | M17: 변경지역
A18: 예천047 | B18: 4790039021102430006 | C18: 경상북도 예천군 | D18: 개포면 | E18: 금리 | F18: 243-6 답 | G18: 답 | H18: 3182.678057 | I18: 3182.6781 | J18: 178-2 | K18: 12 | L18: 3 | M18: 변경지역
A19: 예천047 | B19: 4790039021102440000 | C19: 경상북도 예천군 | D19: 개포면 | E19: 금리 | F19: 244답 | G19: 답 | H19: 2716.966737 | I19: 2716.9667 | J19: 178-2 | K19: 12 | L19: 3 | M19: 변경지역
A20: 예천047 | B20: 4790039021102440001 | C20: 경상북도 예천군 | D20: 개포면 | E20: 금리 | F20: 244-1도 | G20: 도로 | H20: 7.06415599 | I20: 7.0642 | J20: 178-2 | K20: 12 | L20: 3 | M20: 변경지역
A21: 예천047 | B21: 4790039021102440002 | C21: 경상북도 예천군 | D21: 개포면 | E21: 금리 | F21: 244-2도 | G21: 도로 | H21: 6.953298502 | I21: 6.9533 | J21: 178-2 | K21: 12 | L21: 3 | M21: 변경지역
A22: 예천047 | B22: 4790039021102440003 | C22: 경상북도 예천군 | D22: 개포면 | E22: 금리 | F22: 244-3구 | G22: 구거 | H22: 181.1558216 | I22: 181.1558 | J22: 178-2 | K22: 12 | L22: 3 | M22: 변경지역
A23: 예천047 | B23: 4790039021102440004 | C23: 경상북도 예천군 | D23: 개포면 | E23: 금리 | F23: 244-4구 | G23: 구거 | H23: 8.496730974 | I23: 8.4967 | J23: 178-2 | K23: 12 | L23: 3 | M23: 변경지역
A24: 예천047 | B24: 4790039021102450002 | C24: 경상북도 예천군 | D24: 개포면 | E24: 금리 | F24: 245-2도 | G24: 도로 | H24: 2.391315995 | I24: 2.3742 | J24: 178-2 | K24: 12 | L24: 3 | M24: 변경지역
A25: 예천047 | B25: 4790039021102550000 | C25: 경상북도 예천군 | D25: 개포면 | E25: 금리 | F25: 255답 | G25: 답 | H25: 130.5089023 | I25: 130.5089 | J25: 178-2 | K25: 12 | L25: 3 | M25: 변경지역
A26: 예천047 | B26: 4790039021102560000 | C26: 경상북도 예천군 | D26: 개포면 | E26: 금리 | F26: 256답 | G26: 답 | H26: 68.00909132 | I26: 68.0091 | J26: 178-2 | K26: 12 | L26: 3 | M26: 변경지역
A27: 예천047 | B27: 4790039021102560001 | C27: 경상북도 예천군 | D27: 개포면 | E27: 금리 | F27: 256-1도 | G27: 도로 | H27: 22.29418185 | I27: 22.2942 | J27: 178-2 | K27: 12 | L27: 3 | M27: 변경지역
A28: 예천047 | B28: 4790039021102570002 | C28: 경상북도 예천군 | D28: 개포면 | E28: 금리 | F28: 257-2 대 | G28: 대지 | H28: 244.7430357 | I28: 244.743 | J28: 178-2 | K28: 12 | L28: 3 | M28: 변경지역
A29: 예천047 | B29: 4790039021102570004 | C29: 경상북도 예천군 | D29: 개포면 | E29: 금리 | F29: 257-4구 | G29: 구거 | H29: 350.8575313 | I29: 350.8575 | J29: 178-2 | K29: 12 | L29: 3 | M29: 변경지역
A30: 예천047 | B30: 4790039021102570006 | C30: 경상북도 예천군 | D30: 개포면 | E30: 금리 | F30: 257-6도 | G30: 도로 | H30: 61.45010786 | I30: 61.4501 | J30: 178-2 | K30: 12 | L30: 3 | M30: 변경지역
A31: 예천047 | B31: 4790039021102570007 | C31: 경상북도 예천군 | D31: 개포면 | E31: 금리 | F31: 257-7도 | G31: 도로 | H31: 97.7644448 | I31: 97.7644 | J31: 178-2 | K31: 12 | L31: 3 | M31: 변경지역
A32: 예천047 | B32: 4790039021102570008 | C32: 경상북도 예천군 | D32: 개포면 | E32: 금리 | F32: 257-8도 | G32: 도로 | H32: 3.821580986 | I32: 3.8216 | J32: 178-2 | K32: 12 | L32: 3 | M32: 변경지역
A33: 예천047 | B33: 4790039021102570009 | C33: 경상북도 예천군 | D33: 개포면 | E33: 금리 | F33: 257-9 답 | G33: 답 | H33: 1400.796873 | I33: 1400.7969 | J33: 178-2 | K33: 12 | L33: 3 | M33: 변경지역
A34: 예천057,예천047 | B34: 4790039021106080000 | C34: 경상북도 예천군 | D34: 개포면 | E34: 금리 | F34: 608답 | G34: 답 | H34: 1677.417009 | I34: 1677.417 | J34: 178-7 | K34: 12 | L34: 2 | M34: 변경지역
A35: 예천047 | B35: 4790039021106080001 | C35: 경상북도 예천군 | D35: 개포면 | E35: 금리 | F35: 608-1 답 | G35: 답 | H35: 25.20871045 | I35: 25.2087 | J35: 178-7 | K35: 12 | L35: 2 | M35: 변경지역
A36: 예천057,예천047 | B36: 4790039021106090000 | C36: 경상북도 예천군 | D36: 개포면 | E36: 금리 | F36: 609답 | G36: 답 | H36: 2985.201366 | I36: 2985.2014 | J36: 178-7 | K36: 12 | L36: 2 | M36: 변경지역
A37: 예천057,예천056,예천047 | B37: 4790039021106100001 | C37: 경상북도 예천군 | D37: 개포면 | E37: 금리 | F37: 610-1답 | G37: 답 | H37: 3353.970827 | I37: 3353.9708 | J37: 178-7 | K37: 12 | L37: 2 | M37: 변경지역
A38: 예천057,예천047 | B38: 4790039021106100002 | C38: 경상북도 예천군 | D38: 개포면 | E38: 금리 | F38: 610-2전 | G38: 전 | H38: 205.2501961 | I38: 205.2502 | J38: 178-7 | K38: 12 | L38: 2 | M38: 변경지역
A39: 예천057 | B39: 4790039021106100003 | C39: 경상북도 예천군 | D39: 개포면 | E39: 금리 | F39: 610-3전 | G39: 전 | H39: 235.7425675 | I39: 235.7426 | J39: 178-7 | K39: 12 | L39: 2 | M39: 변경지역
A40: 예천057,예천056 | B40: 4790039021106100004 | C40: 경상북도 예천군 | D40: 개포면 | E40: 금리 | F40: 610-4구 | G40: 구거 | H40: 131.5963489 | I40: 131.5963 | J40: 178-7 | K40: 12 | L40: 2 | M40: 변경지역
A41: 예천057,예천047 | B41: 4790039021106100005 | C41: 경상북도 예천군 | D41: 개포면 | E41: 금리 | F41: 610-5구 | G41: 구거 | H41: 3.633830983 | I41: 3.6338 | J41: 178-7 | K41: 12 | L41: 2 | M41: 변경지역
A42: 예천047 | B42: 4790039021106100006 | C42: 경상북도 예천군 | D42: 개포면 | E42: 금리 | F42: 610-6도 | G42: 도로 | H42: 24.06808297 | I42: 24.0681 | J42: 178-7 | K42: 12 | L42: 2 | M42: 변경지역
A43: 예천057 | B43: 4790039021106100007 | C43: 경상북도 예천군 | D43: 개포면 | E43: 금리 | F43: 610-7도 | G43: 도로 | H43: 121.1479058 | I43: 121.1479 | J43: 178-7 | K43: 12 | L43: 2 | M43: 변경지역
A44: 예천057,예천047 | B44: 4790039021106100008 | C44: 경상북도 예천군 | D44: 개포면 | E44: 금리 | F44: 610-8도 | G44: 도로 | H44: 36.06005096 | I44: 36.0601 | J44: 178-7 | K44: 12 | L44: 2 | M44: 변경지역
A45: 예천057 | B45: 4790039021106100009 | C45: 경상북도 예천군 | D45: 개포면 | E45: 금리 | F45: 610-9도 | G45: 도로 | H45: 183.8202171 | I45: 183.8202 | J45: 178-7 | K45: 12 | L45: 2 | M45: 변경지역
A46: 예천047 | B46: 4790039021106100010 | C46: 경상북도 예천군 | D46: 개포면 | E46: 금리 | F46: 610-10 답 | G46: 답 | H46: 19.64736899 | I46: 19.6474 | J46: 178-7 | K46: 12 | L46: 2 | M46: 변경지역
A47: 예천057,예천047 | B47: 4790039021106100011 | C47: 경상북도 예천군 | D47: 개포면 | E47: 금리 | F47: 610-11 전 | G47: 전 | H47: 43.99992341 | I47: 43.9999 | J47: 178-7 | K47: 12 | L47: 2 | M47: 변경지역
A48: 예천057 | B48: 4790039021106100012 | C48: 경상북도 예천군 | D48: 개포면 | E48: 금리 | F48: 610-12 전 | G48: 전 | H48: 9.152426981 | I48: 9.1524 | J48: 178-7 | K48: 12 | L48: 2 | M48: 변경지역
A49: 예천057,예천056 | B49: 4790039021106100013 | C49: 경상북도 예천군 | D49: 개포면 | E49: 금리 | F49: 610-13 구 | G49: 구거 | H49: 159.6687607 | I49: 159.6688 | J49: 178-7 | K49: 12 | L49: 2 | M49: 변경지역
A50: 예천057,예천056 | B50: 4790039021106110000 | C50: 경상북도 예천군 | D50: 개포면 | E50: 금리 | F50: 611답 | G50: 답 | H50: 263.8302685 | I50: 263.8303 | J50: 178-7 | K50: 12 | L50: 2 | M50: 변경지역
A51: 예천057,예천056 | B51: 4790039021106110001 | C51: 경상북도 예천군 | D51: 개포면 | E51: 금리 | F51: 611-1 답 | G51: 답 | H51: 79.32215585 | I51: 79.3222 | J51: 178-7 | K51: 12 | L51: 2 | M51: 변경지역
A52: 예천057 | B52: 4790039021106120000 | C52: 경상북도 예천군 | D52: 개포면 | E52: 금리 | F52: 612답 | G52: 답 | H52: 592.2966725 | I52: 592.2967 | J52: 178-7 | K52: 12 | L52: 2 | M52: 변경지역
A53: 예천057 | B53: 4790039021106120001 | C53: 경상북도 예천군 | D53: 개포면 | E53: 금리 | F53: 612-1 답 | G53: 답 | H53: 161.7844588 | I53: 161.7845 | J53: 178-7 | K53: 12 | L53: 2 | M53: 변경지역
A54: 예천057,예천047 | B54: 4790039021106690001 | C54: 경상북도 예천군 | D54: 개포면 | E54: 금리 | F54: 669-1도 | G54: 도로 | H54: 5971.404729 | I54: 1595.1033 | J54: 178-2 | K54: 12 | L54: 3 | M54: 변경지역
A55: 예천057,예천056,예천047 | B55: 4790039021106940000 | C55: 경상북도 예천군 | D55: 개포면 | E55: 금리 | F55: 694도 | G55: 도로 | H55: 2027.493924 | I55: 631.9301 | J55: 178-7 | K55: 12 | L55: 2 | M55: 변경지역
A56: 예천057 | B56: 4790039022103440000 | C56: 경상북도 예천군 | D56: 개포면 | E56: 경진리 | F56: 344답 | G56: 답 | H56: 6662.476709 | I56: 6662.4767 | J56: 180-2 | K56: 12 | L56: 2 | M56: 변경지역
A57: 예천057 | B57: 4790039022103510001 | C57: 경상북도 예천군 | D57: 개포면 | E57: 경진리 | F57: 351-1 구 | G57: 구거 | H57: 2266.867361 | I57: 449.4232 | J57: 180-2 | K57: 12 | L57: 2 | M57: 변경지역
A58: 예천057 | B58: 4790039022103640000 | C58: 경상북도 예천군 | D58: 개포면 | E58: 경진리 | F58: 364답 | G58: 답 | H58: 3310.793916 | I58: 3310.7441 | J58: 180-2 | K58: 12 | L58: 2 | M58: 변경지역
A59: 예천057 | B59: 4790039022103640001 | C59: 경상북도 예천군 | D59: 개포면 | E59: 경진리 | F59: 364-1 답 | G59: 답 | H59: 80.85111926 | I59: 80.8511 | J59: 180-2 | K59: 12 | L59: 2 | M59: 변경지역
A60: 예천057 | B60: 4790039022103650000 | C60: 경상북도 예천군 | D60: 개포면 | E60: 경진리 | F60: 365답 | G60: 답 | H60: 3377.236904 | I60: 3377.2369 | J60: 180-2 | K60: 12 | L60: 2 | M60: 변경지역
A61: 예천057 | B61: 4790039022103650001 | C61: 경상북도 예천군 | D61: 개포면 | E61: 경진리 | F61: 365-1 답 | G61: 답 | H61: 7.298724305 | I61: 7.2987 | J61: 180-2 | K61: 12 | L61: 2 | M61: 변경지역
A62: 예천057 | B62: 4790039022103660000 | C62: 경상북도 예천군 | D62: 개포면 | E62: 경진리 | F62: 366답 | G62: 답 | H62: 1809.09719 | I62: 1809.0972 | J62: 180-2 | K62: 12 | L62: 2 | M62: 변경지역
A63: 예천057 | B63: 4790039022103660001 | C63: 경상북도 예천군 | D63: 개포면 | E63: 경진리 | F63: 366-1 답 | G63: 답 | H63: 31.61842389 | I63: 31.6034 | J63: 180-2 | K63: 12 | L63: 2 | M63: 변경지역
A64: 예천057 | B64: 4790039022103670003 | C64: 경상북도 예천군 | D64: 개포면 | E64: 경진리 | F64: 367-3답 | G64: 답 | H64: 711.0549761 | I64: 120.7265 | J64: 180-2 | K64: 12 | L64: 2 | M64: 변경지역
A65: 예천057 | B65: 4790039022104310000 | C65: 경상북도 예천군 | D65: 개포면 | E65: 경진리 | F65: 431전 | G65: 전 | H65: 1270.173179 | I65: 1270.1732 | J65: 181-11 | K65: 12 | L65: 2 | M65: 변경지역
A66: 예천057 | B66: 4790039022104320000 | C66: 경상북도 예천군 | D66: 개포면 | E66: 경진리 | F66: 432전 | G66: 전 | H66: 3576.716527 | I66: 3576.7165 | J66: 181-11 | K66: 12 | L66: 2 | M66: 변경지역
A67: 예천057 | B67: 4790039022104330000 | C67: 경상북도 예천군 | D67: 개포면 | E67: 경진리 | F67: 433전 | G67: 전 | H67: 1009.225635 | I67: 1009.2256 | J67: 181-11 | K67: 12 | L67: 2 | M67: 변경지역
A68: 예천057 | B68: 4790039022104340000 | C68: 경상북도 예천군 | D68: 개포면 | E68: 경진리 | F68: 434답 | G68: 답 | H68: 2997.113033 | I68: 2997.113 | J68: 181-11 | K68: 12 | L68: 2 | M68: 변경지역
A69: 예천057 | B69: 4790039022106310000 | C69: 경상북도 예천군 | D69: 개포면 | E69: 경진리 | F69: 631전 | G69: 전 | H69: 1290.408665 | I69: 1290.4087 | J69: 181-11 | K69: 12 | L69: 2 | M69: 변경지역
A70: 예천057 | B70: 4790039022106320000 | C70: 경상북도 예천군 | D70: 개포면 | E70: 경진리 | F70: 632전 | G70: 전 | H70: 2277.952854 | I70: 2277.9529 | J70: 181-11 | K70: 12 | L70: 2 | M70: 변경지역
A71: 예천057 | B71: 4790039022106330000 | C71: 경상북도 예천군 | D71: 개포면 | E71: 경진리 | F71: 633전 | G71: 전 | H71: 2135.752238 | I71: 1.433 | J71: 181-11 | K71: 12 | L71: 2 | M71: 변경지역
A72: 예천057 | B72: 4790039022106570001 | C72: 경상북도 예천군 | D72: 개포면 | E72: 경진리 | F72: 657-1구 | G72: 구거 | H72: 83361.37962 | I72: 426.6338 | J72: 181-11 | K72: 12 | L72: 2 | M72: 변경지역
A73: 예천057 | B73: 4790039022106570006 | C73: 경상북도 예천군 | D73: 개포면 | E73: 경진리 | F73: 657-6구 | G73: 구거 | H73: 1331.934496 | I73: 368.4559 | J73: 180-2 | K73: 12 | L73: 2 | M73: 변경지역
A74: 예천057 | B74: 4790039022106580000 | C74: 경상북도 예천군 | D74: 개포면 | E74: 경진리 | F74: 658도 | G74: 도로 | H74: 3659.784976 | I74: 730.1151 | J74: 180-2 | K74: 12 | L74: 2 | M74: 변경지역
A75: 예천056 | B75: 4790039024101820001 | C75: 경상북도 예천군 | D75: 개포면 | E75: 이사리 | F75: 182-1전 | G75: 전 | H75: 1217.52992 | I75: 1217.5299 | J75: 181-8 | K75: 12 | L75: 2 | M75: 변경지역
A76: 예천056 | B76: 4790039024101820002 | C76: 경상북도 예천군 | D76: 개포면 | E76: 이사리 | F76: 182-2도 | G76: 도로 | H76: 88.95518334 | I76: 88.9552 | J76: 181-8 | K76: 12 | L76: 2 | M76: 변경지역
A77: 예천056 | B77: 4790039024101830001 | C77: 경상북도 예천군 | D77: 개포면 | E77: 이사리 | F77: 183-1전 | G77: 전 | H77: 2128.317046 | I77: 2128.317 | J77: 181-8 | K77: 12 | L77: 2 | M77: 변경지역
A78: 예천056 | B78: 4790039024101830002 | C78: 경상북도 예천군 | D78: 개포면 | E78: 이사리 | F78: 183-2대 | G78: 대지 | H78: 136.3233938 | I78: 136.3234 | J78: 181-8 | K78: 12 | L78: 2 | M78: 변경지역
A79: 예천056 | B79: 4790039024101830003 | C79: 경상북도 예천군 | D79: 개포면 | E79: 이사리 | F79: 183-3도 | G79: 도로 | H79: 39.15484794 | I79: 39.1548 | J79: 181-8 | K79: 12 | L79: 2 | M79: 변경지역
A80: 예천056 | B80: 4790039024101830004 | C80: 경상북도 예천군 | D80: 개포면 | E80: 이사리 | F80: 183-4도 | G80: 도로 | H80: 8.169987487 | I80: 8.17 | J80: 181-8 | K80: 12 | L80: 2 | M80: 변경지역
A81: 예천056 | B81: 4790039024101840001 | C81: 경상북도 예천군 | D81: 개포면 | E81: 이사리 | F81: 184-1묘 | G81: 묘지 | H81: 1151.652507 | I81: 1151.6525 | J81: 181-8 | K81: 12 | L81: 2 | M81: 변경지역
A82: 예천056 | B82: 4790039024101840002 | C82: 경상북도 예천군 | D82: 개포면 | E82: 이사리 | F82: 184-2도 | G82: 도로 | H82: 29.9670285 | I82: 29.967 | J82: 181-8 | K82: 12 | L82: 2 | M82: 변경지역
A83: 예천056 | B83: 4790039024101850001 | C83: 경상북도 예천군 | D83: 개포면 | E83: 이사리 | F83: 185-1답 | G83: 답 | H83: 1390.07191 | I83: 1390.0719 | J83: 181-8 | K83: 12 | L83: 2 | M83: 변경지역
A84: 예천056 | B84: 4790039024101850002 | C84: 경상북도 예천군 | D84: 개포면 | E84: 이사리 | F84: 185-2답 | G84: 답 | H84: 221.008326 | I84: 221.0083 | J84: 181-8 | K84: 12 | L84: 2 | M84: 변경지역
A85: 예천056 | B85: 4790039024101860000 | C85: 경상북도 예천군 | D85: 개포면 | E85: 이사리 | F85: 186답 | G85: 답 | H85: 1440.208806 | I85: 1440.2088 | J85: 181-8 | K85: 12 | L85: 2 | M85: 변경지역
A86: 예천056 | B86: 4790039024101870000 | C86: 경상북도 예천군 | D86: 개포면 | E86: 이사리 | F86: 187전 | G86: 전 | H86: 789.5492435 | I86: 789.5492 | J86: 181-8 | K86: 12 | L86: 2 | M86: 변경지역
A87: 예천056 | B87: 4790039024101880001 | C87: 경상북도 예천군 | D87: 개포면 | E87: 이사리 | F87: 188-1전 | G87: 전 | H87: 3452.69774 | I87: 3452.6977 | J87: 181-8 | K87: 12 | L87: 2 | M87: 변경지역
A88: 예천056 | B88: 4790039024101880002 | C88: 경상북도 예천군 | D88: 개포면 | E88: 이사리 | F88: 188-2도 | G88: 도로 | H88: 24.31209146 | I88: 24.3121 | J88: 181-8 | K88: 12 | L88: 2 | M88: 변경지역
A89: 예천056 | B89: 4790039024101880003 | C89: 경상북도 예천군 | D89: 개포면 | E89: 이사리 | F89: 188-3도 | G89: 도로 | H89: 223.1843901 | I89: 223.1762 | J89: 181-8 | K89: 12 | L89: 2 | M89: 변경지역
A90: 예천056 | B90: 4790039024101890003 | C90: 경상북도 예천군 | D90: 개포면 | E90: 이사리 | F90: 189-3도 | G90: 도로 | H90: 62.47804294 | I90: 62.478 | J90: 181-8 | K90: 12 | L90: 2 | M90: 변경지역
A91: 예천056 | B91: 4790039024101910002 | C91: 경상북도 예천군 | D91: 개포면 | E91: 이사리 | F91: 191-2도 | G91: 도로 | H91: 40.50916792 | I91: 40.1138 | J91: 181-8 | K91: 12 | L91: 2 | M91: 변경지역
A92: 예천056 | B92: 4790039024101910003 | C92: 경상북도 예천군 | D92: 개포면 | E92: 이사리 | F92: 191-3도 | G92: 도로 | H92: 16.96777496 | I92: 16.7404 | J92: 181-8 | K92: 12 | L92: 2 | M92: 변경지역
A93: 예천056 | B93: 4790039024101920003 | C93: 경상북도 예천군 | D93: 개포면 | E93: 이사리 | F93: 192-3도 | G93: 도로 | H93: 71.90319586 | I93: 71.9032 | J93: 181-8 | K93: 12 | L93: 2 | M93: 변경지역
A94: 예천056 | B94: 4790039024101950002 | C94: 경상북도 예천군 | D94: 개포면 | E94: 이사리 | F94: 195-2도 | G94: 도로 | H94: 12.94174901 | I94: 12.9417 | J94: 181-8 | K94: 12 | L94: 2 | M94: 변경지역
A95: 예천056 | B95: 4790039024103340006 | C95: 경상북도 예천군 | D95: 개포면 | E95: 이사리 | F95: 334-6전 | G95: 전 | H95: 450.7303487 | I95: 450.7303 | J95: 181-10 | K95: 12 | L95: 2 | M95: 변경지역
A96: 예천056 | B96: 4790039024103340007 | C96: 경상북도 예천군 | D96: 개포면 | E96: 이사리 | F96: 334-7도 | G96: 도로 | H96: 132.7810522 | I96: 120.4851 | J96: 181-10 | K96: 12 | L96: 2 | M96: 변경지역
A97: 예천056 | B97: 4790039024103340008 | C97: 경상북도 예천군 | D97: 개포면 | E97: 이사리 | F97: 334-8전 | G97: 전 | H97: 681.9669099 | I97: 681.9669 | J97: 181-10 | K97: 12 | L97: 2 | M97: 변경지역
A98: 예천056 | B98: 4790039024103340015 | C98: 경상북도 예천군 | D98: 개포면 | E98: 이사리 | F98: 334-15 구 | G98: 구거 | H98: 262.0860576 | I98: 262.0861 | J98: 181-10 | K98: 12 | L98: 2 | M98: 변경지역
A99: 예천056 | B99: 4790039024103340016 | C99: 경상북도 예천군 | D99: 개포면 | E99: 이사리 | F99: 334-16 전 | G99: 전 | H99: 52.42079511 | I99: 52.4208 | J99: 181-10 | K99: 12 | L99: 2 | M99: 변경지역
A100: 예천056 | B100: 4790039024103340017 | C100: 경상북도 예천군 | D100: 개포면 | E100: 이사리 | F100: 334-17 전 | G100: 전 | H100: 14.11511999 | I100: 14.1151 | J100: 181-10 | K100: 12 | L100: 2 | M100: 변경지역
A101: 예천056 | B101: 4790039024103360001 | C101: 경상북도 예천군 | D101: 개포면 | E101: 이사리 | F101: 336-1전 | G101: 전 | H101: 516.5686957 | I101: 516.5687 | J101: 181-10 | K101: 12 | L101: 2 | M101: 변경지역
A102: 예천056 | B102: 4790039024103360004 | C102: 경상북도 예천군 | D102: 개포면 | E102: 이사리 | F102: 336-4 전 | G102: 전 | H102: 494.871283 | I102: 494.8713 | J102: 181-10 | K102: 12 | L102: 2 | M102: 변경지역
A103: 예천056 | B103: 4790039024103370000 | C103: 경상북도 예천군 | D103: 개포면 | E103: 이사리 | F103: 337전 | G103: 전 | H103: 1899.320205 | I103: 1899.3202 | J103: 181-10 | K103: 12 | L103: 2 | M103: 변경지역
A104: 예천056 | B104: 4790039024103380000 | C104: 경상북도 예천군 | D104: 개포면 | E104: 이사리 | F104: 338답 | G104: 답 | H104: 924.3707548 | I104: 924.3708 | J104: 181-10 | K104: 12 | L104: 2 | M104: 변경지역
A105: 예천056 | B105: 4790039024103390001 | C105: 경상북도 예천군 | D105: 개포면 | E105: 이사리 | F105: 339-1답 | G105: 답 | H105: 862.2182329 | I105: 862.2182 | J105: 181-10 | K105: 12 | L105: 2 | M105: 변경지역
A106: 예천056 | B106: 4790039024103390003 | C106: 경상북도 예천군 | D106: 개포면 | E106: 이사리 | F106: 339-3답 | G106: 답 | H106: 691.3481047 | I106: 691.3481 | J106: 181-10 | K106: 12 | L106: 2 | M106: 변경지역
A107: 예천056 | B107: 4790039024103390005 | C107: 경상북도 예천군 | D107: 개포면 | E107: 이사리 | F107: 339-5 답 | G107: 답 | H107: 104.9304148 | I107: 104.9304 | J107: 181-10 | K107: 12 | L107: 2 | M107: 변경지역
A108: 예천056 | B108: 4790039024103390006 | C108: 경상북도 예천군 | D108: 개포면 | E108: 이사리 | F108: 339-6 답 | G108: 답 | H108: 64.32443685 | I108: 64.3244 | J108: 181-10 | K108: 12 | L108: 2 | M108: 변경지역
A109: 예천056 | B109: 4790039024103400000 | C109: 경상북도 예천군 | D109: 개포면 | E109: 이사리 | F109: 340답 | G109: 답 | H109: 959.8853194 | I109: 959.8853 | J109: 181-10 | K109: 12 | L109: 2 | M109: 변경지역
A110: 예천056 | B110: 4790039024103400002 | C110: 경상북도 예천군 | D110: 개포면 | E110: 이사리 | F110: 340-2답 | G110: 답 | H110: 426.2790323 | I110: 426.279 | J110: 181-10 | K110: 12 | L110: 2 | M110: 변경지역
A111: 예천056 | B111: 4790039024103410001 | C111: 경상북도 예천군 | D111: 개포면 | E111: 이사리 | F111: 341-1답 | G111: 답 | H111: 1822.297409 | I111: 1822.2974 | J111: 181-10 | K111: 12 | L111: 2 | M111: 변경지역
A112: 예천056 | B112: 4790039024103590009 | C112: 경상북도 예천군 | D112: 개포면 | E112: 이사리 | F112: 359-9도 | G112: 도로 | H112: 99.4774853 | I112: 99.4775 | J112: 181-8 | K112: 12 | L112: 2 | M112: 변경지역
A113: 예천056 | B113: 4790039024103590010 | C113: 경상북도 예천군 | D113: 개포면 | E113: 이사리 | F113: 359-10도 | G113: 도로 | H113: 16.08104502 | I113: 16.081 | J113: 181-8 | K113: 12 | L113: 2 | M113: 변경지역
A114: 예천056 | B114: 4790039024105330000 | C114: 경상북도 예천군 | D114: 개포면 | E114: 이사리 | F114: 533전 | G114: 전 | H114: 1884.096149 | I114: 1884.0961 | J114: 181-10 | K114: 12 | L114: 2 | M114: 변경지역
A115: 예천056 | B115: 4790039024105330002 | C115: 경상북도 예천군 | D115: 개포면 | E115: 이사리 | F115: 533-2 전 | G115: 전 | H115: 375.1190373 | I115: 375.119 | J115: 181-10 | K115: 12 | L115: 2 | M115: 변경지역
A116: 예천056 | B116: 4790039024105500000 | C116: 경상북도 예천군 | D116: 개포면 | E116: 이사리 | F116: 550도 | G116: 도로 | H116: 2634.332202 | I116: 2562.4311 | J116: 181-10 | K116: 12 | L116: 2 | M116: 변경지역
A117: 예천056 | B117: 4790039024105520000 | C117: 경상북도 예천군 | D117: 개포면 | E117: 이사리 | F117: 552도 | G117: 도로 | H117: 2928.138131 | I117: 848.4022 | J117: 181-8 | K117: 12 | L117: 2 | M117: 변경지역
A118: 예천055 | B118: 4790039025103100002 | C118: 경상북도 예천군 | D118: 개포면 | E118: 우감리 | F118: 310-2전 | G118: 전 | H118: 1833.575078 | I118: 1833.5751 | J118: 174-12 | K118: 12 | L118: 1 | M118: 변경지역
A119: 예천055 | B119: 4790039025103100003 | C119: 경상북도 예천군 | D119: 개포면 | E119: 우감리 | F119: 310-3답 | G119: 답 | H119: 503.1015572 | I119: 503.1016 | J119: 174-12 | K119: 12 | L119: 1 | M119: 변경지역
A120: 예천055 | B120: 4790039025103100005 | C120: 경상북도 예천군 | D120: 개포면 | E120: 우감리 | F120: 310-5도 | G120: 도로 | H120: 27.84891893 | I120: 27.8489 | J120: 174-12 | K120: 12 | L120: 1 | M120: 변경지역
A121: 예천055 | B121: 4790039025103110001 | C121: 경상북도 예천군 | D121: 개포면 | E121: 우감리 | F121: 311-1답 | G121: 답 | H121: 32.26692245 | I121: 32.2669 | J121: 174-12 | K121: 12 | L121: 1 | M121: 변경지역
A122: 예천055 | B122: 4790039025105260000 | C122: 경상북도 예천군 | D122: 개포면 | E122: 우감리 | F122: 526답 | G122: 답 | H122: 243.6608771 | I122: 243.6609 | J122: 176-2 | K122: 12 | L122: 5 | M122: 변경지역
A123: 예천055 | B123: 4790039025105270000 | C123: 경상북도 예천군 | D123: 개포면 | E123: 우감리 | F123: 527답 | G123: 답 | H123: 4787.305036 | I123: 4787.305 | J123: 176-2 | K123: 12 | L123: 5 | M123: 변경지역
A124: 예천055 | B124: 4790039025105280000 | C124: 경상북도 예천군 | D124: 개포면 | E124: 우감리 | F124: 528답 | G124: 답 | H124: 1600.463341 | I124: 1600.4633 | J124: 176-2 | K124: 12 | L124: 5 | M124: 변경지역
A125: 예천055 | B125: 4790039025105290002 | C125: 경상북도 예천군 | D125: 개포면 | E125: 우감리 | F125: 529-2 답 | G125: 답 | H125: 1735.503636 | I125: 1735.5036 | J125: 176-2 | K125: 12 | L125: 5 | M125: 변경지역
A126: 예천055 | B126: 4790039025105300000 | C126: 경상북도 예천군 | D126: 개포면 | E126: 우감리 | F126: 530답 | G126: 답 | H126: 1533.018769 | I126: 1533.0188 | J126: 176-2 | K126: 12 | L126: 5 | M126: 변경지역
A127: 예천055 | B127: 4790039025108440006 | C127: 경상북도 예천군 | D127: 개포면 | E127: 우감리 | F127: 844-6구 | G127: 구거 | H127: 3550.782352 | I127: 2893.2522 | J127: 176-2 | K127: 12 | L127: 5 | M127: 변경지역
A128: 예천055 | B128: 4790039025108880001 | C128: 경상북도 예천군 | D128: 개포면 | E128: 우감리 | F128: 888-1구 | G128: 구거 | H128: 233.27238 | I128: 233.2724 | J128: 174-12 | K128: 12 | L128: 1 | M128: 변경지역
A129: 예천065 | B129: 4790039026100450000 | C129: 경상북도 예천군 | D129: 개포면 | E129: 신음리 | F129: 45답 | G129: 답 | H129: 2747.774467 | I129: 2747.4286 | J129: 174-13 | K129: 12 | L129: 2 | M129: 변경지역
A130: 예천065 | B130: 4790039026100460000 | C130: 경상북도 예천군 | D130: 개포면 | E130: 신음리 | F130: 46전 | G130: 전 | H130: 5048.409228 | I130: 5048.0591 | J130: 174-13 | K130: 12 | L130: 2 | M130: 변경지역
A131: 예천065 | B131: 4790039026100460001 | C131: 경상북도 예천군 | D131: 개포면 | E131: 신음리 | F131: 46-1전 | G131: 전 | H131: 372.1212523 | I131: 372.1213 | J131: 174-13 | K131: 12 | L131: 2 | M131: 변경지역
A132: 예천065 | B132: 4790039026100470000 | C132: 경상북도 예천군 | D132: 개포면 | E132: 신음리 | F132: 47전 | G132: 전 | H132: 1744.168969 | I132: 1744.169 | J132: 174-13 | K132: 12 | L132: 2 | M132: 변경지역
A133: 예천065 | B133: 4790039026100480000 | C133: 경상북도 예천군 | D133: 개포면 | E133: 신음리 | F133: 48전 | G133: 전 | H133: 1185.606322 | I133: 1185.6063 | J133: 174-13 | K133: 12 | L133: 2 | M133: 변경지역
A134: 예천055,예천065 | B134: 4790039026100490000 | C134: 경상북도 예천군 | D134: 개포면 | E134: 신음리 | F134: 49전 | G134: 전 | H134: 2022.142773 | I134: 2020.9796 | J134: 174-13 | K134: 12 | L134: 2 | M134: 변경지역
A135: 예천055 | B135: 4790039026100540001 | C135: 경상북도 예천군 | D135: 개포면 | E135: 신음리 | F135: 54-1답 | G135: 답 | H135: 370.3344473 | I135: 370.3344 | J135: 174-13 | K135: 12 | L135: 2 | M135: 변경지역
A136: 예천055 | B136: 4790039026100670000 | C136: 경상북도 예천군 | D136: 개포면 | E136: 신음리 | F136: 67답 | G136: 답 | H136: 1097.45327 | I136: 1097.4533 | J136: 176-2 | K136: 12 | L136: 5 | M136: 변경지역
A137: 예천055 | B137: 4790039026100680000 | C137: 경상북도 예천군 | D137: 개포면 | E137: 신음리 | F137: 68답 | G137: 답 | H137: 2828.116705 | I137: 2828.1167 | J137: 176-2 | K137: 12 | L137: 5 | M137: 변경지역
A138: 예천055 | B138: 4790039026100690001 | C138: 경상북도 예천군 | D138: 개포면 | E138: 신음리 | F138: 69-1답 | G138: 답 | H138: 1416.312293 | I138: 1416.3123 | J138: 176-2 | K138: 12 | L138: 5 | M138: 변경지역
A139: 예천055 | B139: 4790039026100690002 | C139: 경상북도 예천군 | D139: 개포면 | E139: 신음리 | F139: 69-2전 | G139: 전 | H139: 1568.023788 | I139: 1568.0238 | J139: 176-2 | K139: 12 | L139: 5 | M139: 변경지역
A140: 예천055 | B140: 4790039026100700000 | C140: 경상북도 예천군 | D140: 개포면 | E140: 신음리 | F140: 70답 | G140: 답 | H140: 1727.668966 | I140: 1727.669 | J140: 176-2 | K140: 12 | L140: 5 | M140: 변경지역
A141: 예천055 | B141: 4790039026100720000 | C141: 경상북도 예천군 | D141: 개포면 | E141: 신음리 | F141: 72답 | G141: 답 | H141: 5049.414275 | I141: 5049.4143 | J141: 176-2 | K141: 12 | L141: 5 | M141: 변경지역
A142: 예천055 | B142: 4790039026100730000 | C142: 경상북도 예천군 | D142: 개포면 | E142: 신음리 | F142: 73전 | G142: 전 | H142: 49.88649643 | I142: 49.8865 | J142: 176-2 | K142: 12 | L142: 5 | M142: 변경지역
A143: 예천055 | B143: 4790039026100750006 | C143: 경상북도 예천군 | D143: 개포면 | E143: 신음리 | F143: 75-6전 | G143: 전 | H143: 615.5381062 | I143: 615.0495 | J143: 176-2 | K143: 12 | L143: 5 | M143: 변경지역
A144: 예천055 | B144: 4790039026100800000 | C144: 경상북도 예천군 | D144: 개포면 | E144: 신음리 | F144: 80답 | G144: 답 | H144: 1302.041058 | I144: 1302.0411 | J144: 176-2 | K144: 12 | L144: 5 | M144: 변경지역
A145: 예천055 | B145: 4790039026100810000 | C145: 경상북도 예천군 | D145: 개포면 | E145: 신음리 | F145: 81답 | G145: 답 | H145: 1511.030572 | I145: 1511.0306 | J145: 176-2 | K145: 12 | L145: 5 | M145: 변경지역
A146: 예천055 | B146: 4790039026100820001 | C146: 경상북도 예천군 | D146: 개포면 | E146: 신음리 | F146: 82-1답 | G146: 답 | H146: 1922.724216 | I146: 1922.7242 | J146: 176-2 | K146: 12 | L146: 5 | M146: 변경지역
A147: 예천055 | B147: 4790039026101720000 | C147: 경상북도 예천군 | D147: 개포면 | E147: 신음리 | F147: 172답 | G147: 답 | H147: 946.2374727 | I147: 945.9621 | J147: 173-8 | K147: 13 | L147: 5 | M147: 변경지역
A148: 예천055 | B148: 4790039026101740000 | C148: 경상북도 예천군 | D148: 개포면 | E148: 신음리 | F148: 174전 | G148: 전 | H148: 2016.694905 | I148: 2016.6727 | J148: 173-8 | K148: 13 | L148: 5 | M148: 변경지역
A149: 예천055 | B149: 4790039026101750000 | C149: 경상북도 예천군 | D149: 개포면 | E149: 신음리 | F149: 175전 | G149: 전 | H149: 4404.213811 | I149: 4404.2138 | J149: 173-8 | K149: 13 | L149: 5 | M149: 변경지역
A150: 예천055 | B150: 4790039026101810000 | C150: 경상북도 예천군 | D150: 개포면 | E150: 신음리 | F150: 181답 | G150: 답 | H150: 455.8366837 | I150: 455.8367 | J150: 173-8 | K150: 13 | L150: 5 | M150: 변경지역
A151: 예천055 | B151: 4790039026102470001 | C151: 경상북도 예천군 | D151: 개포면 | E151: 신음리 | F151: 247-1전 | G151: 전 | H151: 2395.254645 | I151: 2395.1917 | J151: 176-2 | K151: 12 | L151: 5 | M151: 변경지역
A152: 예천055 | B152: 4790039026102480000 | C152: 경상북도 예천군 | D152: 개포면 | E152: 신음리 | F152: 248전 | G152: 전 | H152: 2236.831491 | I152: 2236.6889 | J152: 176-2 | K152: 12 | L152: 5 | M152: 변경지역
A153: 예천055 | B153: 4790039026103780002 | C153: 경상북도 예천군 | D153: 개포면 | E153: 신음리 | F153: 378-2구 | G153: 구거 | H153: 3979.245044 | I153: 795.6745 | J153: 173-8 | K153: 13 | L153: 5 | M153: 변경지역
A154: 예천065,예천066 | B154: 4790039026105450000 | C154: 경상북도 예천군 | D154: 개포면 | E154: 신음리 | F154: 545천 | G154: 하천 | H154: 712339.1013 | I154: 2402.2123 | J154: 174-13 | K154: 12 | L154: 2 | M154: 변경지역
A155: 예천055 | B155: 4790039026105460000 | C155: 경상북도 예천군 | D155: 개포면 | E155: 신음리 | F155: 546천 | G155: 하천 | H155: 29645.10259 | I155: 3620.0596 | J155: 176-2 | K155: 12 | L155: 5 | M155: 변경지역
A156: 예천055,예천065 | B156: 4790039026105480000 | C156: 경상북도 예천군 | D156: 개포면 | E156: 신음리 | F156: 548구 | G156: 구거 | H156: 375.0714843 | I156: 375.0715 | J156: 174-13 | K156: 12 | L156: 2 | M156: 변경지역
A157: 예천055 | B157: 4790039027100150003 | C157: 경상북도 예천군 | D157: 개포면 | E157: 가곡리 | F157: 15-3답 | G157: 답 | H157: 2974.484105 | I157: 2974.4841 | J157: 173-8 | K157: 13 | L157: 5 | M157: 변경지역
A158: 예천055 | B158: 4790039027100160000 | C158: 경상북도 예천군 | D158: 개포면 | E158: 가곡리 | F158: 16답 | G158: 답 | H158: 1528.517077 | I158: 1528.5171 | J158: 173-8 | K158: 13 | L158: 5 | M158: 변경지역
A159: 예천055 | B159: 4790039027100170000 | C159: 경상북도 예천군 | D159: 개포면 | E159: 가곡리 | F159: 17답 | G159: 답 | H159: 1152.895509 | I159: 1152.478 | J159: 173-8 | K159: 13 | L159: 5 | M159: 변경지역
A160: 예천055 | B160: 4790039027100180000 | C160: 경상북도 예천군 | D160: 개포면 | E160: 가곡리 | F160: 18답 | G160: 답 | H160: 2691.73422 | I160: 2691.7342 | J160: 173-8 | K160: 13 | L160: 5 | M160: 변경지역
A161: 예천055 | B161: 4790039027100190000 | C161: 경상북도 예천군 | D161: 개포면 | E161: 가곡리 | F161: 19답 | G161: 답 | H161: 2207.671616 | I161: 2207.6716 | J161: 173-8 | K161: 13 | L161: 5 | M161: 변경지역
A162: 예천055 | B162: 4790039027100200000 | C162: 경상북도 예천군 | D162: 개포면 | E162: 가곡리 | F162: 20전 | G162: 전 | H162: 1768.529606 | I162: 1768.5296 | J162: 173-8 | K162: 13 | L162: 5 | M162: 변경지역
A163: 예천055 | B163: 4790039027100210000 | C163: 경상북도 예천군 | D163: 개포면 | E163: 가곡리 | F163: 21전 | G163: 전 | H163: 1665.125034 | I163: 1665.125 | J163: 173-8 | K163: 13 | L163: 5 | M163: 변경지역
A164: 예천055 | B164: 4790039027100210001 | C164: 경상북도 예천군 | D164: 개포면 | E164: 가곡리 | F164: 21-1전 | G164: 전 | H164: 2144.450607 | I164: 2144.4506 | J164: 173-8 | K164: 13 | L164: 5 | M164: 변경지역
A165: 예천055 | B165: 4790039027100220003 | C165: 경상북도 예천군 | D165: 개포면 | E165: 가곡리 | F165: 22-3답 | G165: 답 | H165: 2451.753182 | I165: 2451.7532 | J165: 173-8 | K165: 13 | L165: 5 | M165: 변경지역
A166: 예천055 | B166: 4790039027100240000 | C166: 경상북도 예천군 | D166: 개포면 | E166: 가곡리 | F166: 24답 | G166: 답 | H166: 2391.383537 | I166: 2391.3835 | J166: 173-18 | K166: 2 | L166: 10 | M166: 변경지역
A167: 예천055 | B167: 4790039027100240001 | C167: 경상북도 예천군 | D167: 개포면 | E167: 가곡리 | F167: 24-1답 | G167: 답 | H167: 993.8444888 | I167: 993.8445 | J167: 173-18 | K167: 2 | L167: 10 | M167: 변경지역
A168: 예천055 | B168: 4790039027100240002 | C168: 경상북도 예천군 | D168: 개포면 | E168: 가곡리 | F168: 24-2답 | G168: 답 | H168: 1965.113535 | I168: 1965.1135 | J168: 173-18 | K168: 2 | L168: 10 | M168: 변경지역
A169: 예천055 | B169: 4790039027100250000 | C169: 경상북도 예천군 | D169: 개포면 | E169: 가곡리 | F169: 25답 | G169: 답 | H169: 3390.237776 | I169: 3390.2378 | J169: 173-18 | K169: 2 | L169: 10 | M169: 변경지역
A170: 예천055 | B170: 4790039027100250001 | C170: 경상북도 예천군 | D170: 개포면 | E170: 가곡리 | F170: 25-1답 | G170: 답 | H170: 3930.083562 | I170: 3930.0836 | J170: 173-18 | K170: 2 | L170: 10 | M170: 변경지역
A171: 예천055 | B171: 4790039027100260000 | C171: 경상북도 예천군 | D171: 개포면 | E171: 가곡리 | F171: 26답 | G171: 답 | H171: 2169.339876 | I171: 2169.3399 | J171: 173-18 | K171: 2 | L171: 10 | M171: 변경지역
A172: 예천055 | B172: 4790039027100260001 | C172: 경상북도 예천군 | D172: 개포면 | E172: 가곡리 | F172: 26-1답 | G172: 답 | H172: 2642.80825 | I172: 2642.8082 | J172: 173-18 | K172: 2 | L172: 10 | M172: 변경지역
A173: 예천055 | B173: 4790039027100260002 | C173: 경상북도 예천군 | D173: 개포면 | E173: 가곡리 | F173: 26-2답 | G173: 답 | H173: 3031.537133 | I173: 3031.5371 | J173: 173-18 | K173: 2 | L173: 10 | M173: 변경지역
A174: 예천055 | B174: 4790039027100270000 | C174: 경상북도 예천군 | D174: 개포면 | E174: 가곡리 | F174: 27답 | G174: 답 | H174: 2883.832138 | I174: 2883.8321 | J174: 173-18 | K174: 2 | L174: 10 | M174: 변경지역
A175: 예천055 | B175: 4790039027100270001 | C175: 경상북도 예천군 | D175: 개포면 | E175: 가곡리 | F175: 27-1답 | G175: 답 | H175: 3276.736483 | I175: 3276.7365 | J175: 173-18 | K175: 2 | L175: 10 | M175: 변경지역
A176: 예천055 | B176: 4790039027100350002 | C176: 경상북도 예천군 | D176: 개포면 | E176: 가곡리 | F176: 35-2전 | G176: 전 | H176: 609.0599079 | I176: 609.0599 | J176: 173-8 | K176: 13 | L176: 5 | M176: 변경지역
A177: 예천055 | B177: 4790039027100360000 | C177: 경상북도 예천군 | D177: 개포면 | E177: 가곡리 | F177: 36전 | G177: 전 | H177: 2712.127359 | I177: 2712.1274 | J177: 173-8 | K177: 13 | L177: 5 | M177: 변경지역
A178: 예천055 | B178: 4790039027100370004 | C178: 경상북도 예천군 | D178: 개포면 | E178: 가곡리 | F178: 37-4답 | G178: 답 | H178: 1489.496971 | I178: 1489.497 | J178: 173-8 | K178: 13 | L178: 5 | M178: 변경지역
A179: 예천055 | B179: 4790039027100370005 | C179: 경상북도 예천군 | D179: 개포면 | E179: 가곡리 | F179: 37-5전 | G179: 전 | H179: 1754.51712 | I179: 1754.5171 | J179: 173-8 | K179: 13 | L179: 5 | M179: 변경지역
A180: 예천055 | B180: 4790039027100380000 | C180: 경상북도 예천군 | D180: 개포면 | E180: 가곡리 | F180: 38전 | G180: 전 | H180: 1678.929001 | I180: 1678.929 | J180: 173-8 | K180: 13 | L180: 5 | M180: 변경지역
A181: 예천055 | B181: 4790039027100390000 | C181: 경상북도 예천군 | D181: 개포면 | E181: 가곡리 | F181: 39전 | G181: 전 | H181: 4973.044366 | I181: 4973.0444 | J181: 173-8 | K181: 13 | L181: 5 | M181: 변경지역
A182: 예천055 | B182: 4790039027100400000 | C182: 경상북도 예천군 | D182: 개포면 | E182: 가곡리 | F182: 40전 | G182: 전 | H182: 2088.369285 | I182: 2088.3693 | J182: 173-8 | K182: 13 | L182: 5 | M182: 변경지역
A183: 예천055 | B183: 4790039027100430001 | C183: 경상북도 예천군 | D183: 개포면 | E183: 가곡리 | F183: 43-1전 | G183: 전 | H183: 1303.094716 | I183: 1303.0947 | J183: 173-8 | K183: 13 | L183: 5 | M183: 변경지역
A184: 예천055 | B184: 4790039027100440000 | C184: 경상북도 예천군 | D184: 개포면 | E184: 가곡리 | F184: 44전 | G184: 전 | H184: 1029.099006 | I184: 1029.099 | J184: 173-8 | K184: 13 | L184: 5 | M184: 변경지역
A185: 예천055 | B185: 4790039027100830000 | C185: 경상북도 예천군 | D185: 개포면 | E185: 가곡리 | F185: 83답 | G185: 답 | H185: 1925.430484 | I185: 1925.4305 | J185: 173-18 | K185: 2 | L185: 10 | M185: 변경지역
A186: 예천055 | B186: 4790039027100830001 | C186: 경상북도 예천군 | D186: 개포면 | E186: 가곡리 | F186: 83-1 대 | G186: 대지 | H186: 661.0509852 | I186: 661.051 | J186: 173-18 | K186: 2 | L186: 10 | M186: 변경지역
A187: 예천055 | B187: 4790039027100830002 | C187: 경상북도 예천군 | D187: 개포면 | E187: 가곡리 | F187: 83-2 답 | G187: 답 | H187: 869.2068184 | I187: 869.2068 | J187: 173-18 | K187: 2 | L187: 10 | M187: 변경지역
A188: 예천055,예천065 | B188: 4790039027101540001 | C188: 경상북도 예천군 | D188: 개포면 | E188: 가곡리 | F188: 154-1답 | G188: 답 | H188: 1624.667821 | I188: 1624.6678 | J188: 173-13 | K188: 12 | L188: 2 | M188: 변경지역
A189: 예천055,예천065 | B189: 4790039027101540002 | C189: 경상북도 예천군 | D189: 개포면 | E189: 가곡리 | F189: 154-2답 | G189: 답 | H189: 504.7258466 | I189: 504.7258 | J189: 173-13 | K189: 12 | L189: 2 | M189: 변경지역
A190: 예천055,예천065 | B190: 4790039027101540003 | C190: 경상북도 예천군 | D190: 개포면 | E190: 가곡리 | F190: 154-3전 | G190: 전 | H190: 1455.774388 | I190: 1455.7744 | J190: 173-13 | K190: 12 | L190: 2 | M190: 변경지역
A191: 예천055,예천065 | B191: 4790039027101550000 | C191: 경상북도 예천군 | D191: 개포면 | E191: 가곡리 | F191: 155답 | G191: 답 | H191: 3085.932122 | I191: 3085.9321 | J191: 173-13 | K191: 12 | L191: 2 | M191: 변경지역
A192: 예천055 | B192: 4790039027101610000 | C192: 경상북도 예천군 | D192: 개포면 | E192: 가곡리 | F192: 161전 | G192: 전 | H192: 1475.753837 | I192: 1475.7538 | J192: 173-13 | K192: 12 | L192: 2 | M192: 변경지역
A193: 예천055,예천065 | B193: 4790039027101610001 | C193: 경상북도 예천군 | D193: 개포면 | E193: 가곡리 | F193: 161-1전 | G193: 전 | H193: 2289.094434 | I193: 2289.0944 | J193: 173-13 | K193: 12 | L193: 2 | M193: 변경지역
A194: 예천054 | B194: 4790039027102540000 | C194: 경상북도 예천군 | D194: 개포면 | E194: 가곡리 | F194: 254답 | G194: 답 | H194: 3758.945691 | I194: 3758.8165 | J194: 173-22 | K194: 12 | L194: 1 | M194: 변경지역
A195: 예천054,예천055 | B195: 4790039027102540001 | C195: 경상북도 예천군 | D195: 개포면 | E195: 가곡리 | F195: 254-1답 | G195: 답 | H195: 2640.388254 | I195: 2640.3883 | J195: 173-22 | K195: 12 | L195: 1 | M195: 변경지역
A196: 예천054 | B196: 4790039027102630000 | C196: 경상북도 예천군 | D196: 개포면 | E196: 가곡리 | F196: 263전 | G196: 전 | H196: 1621.357245 | I196: 1621.3572 | J196: 173-16 | K196: 13 | L196: 2 | M196: 변경지역
A197: 예천054 | B197: 4790039027102710000 | C197: 경상북도 예천군 | D197: 개포면 | E197: 가곡리 | F197: 271전 | G197: 전 | H197: 2970.344133 | I197: 2970.3441 | J197: 173-16 | K197: 13 | L197: 2 | M197: 변경지역
A198: 예천054 | B198: 4790039027102740000 | C198: 경상북도 예천군 | D198: 개포면 | E198: 가곡리 | F198: 274전 | G198: 전 | H198: 5073.82983 | I198: 5073.5951 | J198: 173-16 | K198: 13 | L198: 2 | M198: 변경지역
A199: 예천054 | B199: 4790039027105370000 | C199: 경상북도 예천군 | D199: 개포면 | E199: 가곡리 | F199: 537답 | G199: 답 | H199: 5579.465576 | I199: 5579.4656 | J199: 170-7 | K199: 12 | L199: 3 | M199: 변경지역
A200: 예천054 | B200: 4790039027105370001 | C200: 경상북도 예천군 | D200: 개포면 | E200: 가곡리 | F200: 537-1도 | G200: 도로 | H200: 44.98466588 | I200: 44.9847 | J200: 170-7 | K200: 12 | L200: 3 | M200: 변경지역
... 143 more rows

Sheet 해제조서
A1: 도엽번호 | B1: PNU코드 | C1: 시군구 | D1: 읍면 | E1: 리동 | F1: 지번 | G1: 지목 | H1: 면적_전체 | I1: 면적_부분 | J1: 소권역번호 | K1: 유형번호_상위 | L1: 유형번호_하위 | M1: 진흥지역용도구분
A2: 예천039,예천049 | B2: 4790025024100350002 | C2: 경상북도 예천군 | D2: 예천읍 | E2: 동본리 | F2: 35-2 답 | G2: 답 | H2: 877.2718588 | I2: 0.0042 | J2: 15-4 | K2: 2 | L2: 6 | M2: 진흥구역
A3: 예천049 | B3: 4790025025102950001 | C3: 경상북도 예천군 | D3: 예천읍 | E3: 남본리 | F3: 295-1도 | G3: 도로 | H3: 20.87497697 | I3: 20.875 | J3: 21-900 | K3: 16 | L3: 14 | M3: 진흥구역
A4: 예천048 | B4: 4790025027100800006 | C4: 경상북도 예천군 | D4: 예천읍 | E4: 대심리 | F4: 80-6대 | G4: 대지 | H4: 203.4233042 | I4: 203.4233 | J4: 1-900 | K4: 16 | L4: 14 | M4: 진흥구역
A5: 예천048 | B5: 4790025027100800007 | C5: 경상북도 예천군 | D5: 예천읍 | E5: 대심리 | F5: 80-7대 | G5: 대지 | H5: 162.2814702 | I5: 162.2815 | J5: 1-900 | K5: 16 | L5: 14 | M5: 진흥구역
A6: 예천048 | B6: 4790025027100800008 | C6: 경상북도 예천군 | D6: 예천읍 | E6: 대심리 | F6: 80-8답 | G6: 답 | H6: 37.50957796 | I6: 37.5096 | J6: 1-900 | K6: 16 | L6: 14 | M6: 진흥구역
A7: 예천048 | B7: 4790025027100800009 | C7: 경상북도 예천군 | D7: 예천읍 | E7: 대심리 | F7: 80-9대 | G7: 대지 | H7: 178.8628742 | I7: 178.8629 | J7: 1-900 | K7: 16 | L7: 14 | M7: 진흥구역
A8: 예천048 | B8: 4790025027100810004 | C8: 경상북도 예천군 | D8: 예천읍 | E8: 대심리 | F8: 81-4철 | G8: 철도용지 | H8: 137.1550942 | I8: 137.1551 | J8: 1-6 | K8: 2 | L8: 6 | M8: 진흥구역
A9: 예천048 | B9: 4790025027100810005 | C9: 경상북도 예천군 | D9: 예천읍 | E9: 대심리 | F9: 81-5철 | G9: 철도용지 | H9: 25241.24407 | I9: 25241.2441 | J9: 1-6 | K9: 2 | L9: 6 | M9: 진흥구역
A10: 예천048 | B10: 4790025027100860005 | C10: 경상북도 예천군 | D10: 예천읍 | E10: 대심리 | F10: 86-5철 | G10: 철도용지 | H10: 24.71179194 | I10: 24.7118 | J10: 1-6 | K10: 2 | L10: 6 | M10: 진흥구역
A11: 예천048 | B11: 4790025027101220008 | C11: 경상북도 예천군 | D11: 예천읍 | E11: 대심리 | F11: 122-8 임 | G11: 임야 | H11: 6066.679314 | I11: 7.2461 | J11: 22-910 | K11: 2 | L11: 3 | M11: 진흥구역
A12: 예천048 | B12: 4790025027103060002 | C12: 경상북도 예천군 | D12: 예천읍 | E12: 대심리 | F12: 306-2답 | G12: 답 | H12: 1407.336167 | I12: 1407.3362 | J12: 1-900 | K12: 16 | L12: 14 | M12: 진흥구역
A13: 예천048 | B13: 4790025027103240004 | C13: 경상북도 예천군 | D13: 예천읍 | E13: 대심리 | F13: 324-4 철 | G13: 철도용지 | H13: 105.8722533 | I13: 105.8723 | J13: 1-6 | K13: 2 | L13: 6 | M13: 진흥구역
A14: 예천048 | B14: 4790025027103270002 | C14: 경상북도 예천군 | D14: 예천읍 | E14: 대심리 | F14: 327-2답 | G14: 답 | H14: 4814.676577 | I14: 4814.6766 | J14: 1-900 | K14: 16 | L14: 14 | M14: 진흥구역
A15: 예천048 | B15: 4790025027103270003 | C15: 경상북도 예천군 | D15: 예천읍 | E15: 대심리 | F15: 327-3도 | G15: 도로 | H15: 205.7173831 | I15: 205.7174 | J15: 1-900 | K15: 16 | L15: 14 | M15: 진흥구역
A16: 예천048 | B16: 4790025027103270004 | C16: 경상북도 예천군 | D16: 예천읍 | E16: 대심리 | F16: 327-4도 | G16: 도로 | H16: 116.4727108 | I16: 116.4727 | J16: 1-900 | K16: 16 | L16: 14 | M16: 진흥구역
A17: 예천048 | B17: 4790025027103280001 | C17: 경상북도 예천군 | D17: 예천읍 | E17: 대심리 | F17: 328-1답 | G17: 답 | H17: 687.8158058 | I17: 687.8158 | J17: 1-900 | K17: 16 | L17: 14 | M17: 진흥구역
A18: 예천048 | B18: 4790025027103280002 | C18: 경상북도 예천군 | D18: 예천읍 | E18: 대심리 | F18: 328-2도 | G18: 도로 | H18: 685.6210771 | I18: 685.6211 | J18: 1-900 | K18: 16 | L18: 14 | M18: 진흥구역
A19: 예천048 | B19: 4790025027103280003 | C19: 경상북도 예천군 | D19: 예천읍 | E19: 대심리 | F19: 328-3도 | G19: 도로 | H19: 750.3583786 | I19: 750.3584 | J19: 1-900 | K19: 16 | L19: 14 | M19: 진흥구역
A20: 예천048 | B20: 4790025027103280004 | C20: 경상북도 예천군 | D20: 예천읍 | E20: 대심리 | F20: 328-4도 | G20: 도로 | H20: 137.2866193 | I20: 137.2866 | J20: 1-900 | K20: 16 | L20: 14 | M20: 진흥구역
A21: 예천048 | B21: 4790025027103290001 | C21: 경상북도 예천군 | D21: 예천읍 | E21: 대심리 | F21: 329-1도 | G21: 도로 | H21: 319.1938168 | I21: 319.1938 | J21: 1-900 | K21: 16 | L21: 14 | M21: 진흥구역
A22: 예천048 | B22: 4790025027103290002 | C22: 경상북도 예천군 | D22: 예천읍 | E22: 대심리 | F22: 329-2도 | G22: 도로 | H22: 387.6321274 | I22: 387.6321 | J22: 1-900 | K22: 16 | L22: 14 | M22: 진흥구역
A23: 예천048 | B23: 4790025027103300001 | C23: 경상북도 예천군 | D23: 예천읍 | E23: 대심리 | F23: 330-1대 | G23: 대지 | H23: 392.4738842 | I23: 392.4739 | J23: 1-900 | K23: 16 | L23: 14 | M23: 진흥구역
A24: 예천048 | B24: 4790025027103300002 | C24: 경상북도 예천군 | D24: 예천읍 | E24: 대심리 | F24: 330-2도 | G24: 도로 | H24: 245.1374345 | I24: 245.1374 | J24: 1-900 | K24: 16 | L24: 14 | M24: 진흥구역
A25: 예천048 | B25: 4790025027103300003 | C25: 경상북도 예천군 | D25: 예천읍 | E25: 대심리 | F25: 330-3도 | G25: 도로 | H25: 657.7589713 | I25: 657.759 | J25: 1-900 | K25: 16 | L25: 14 | M25: 진흥구역
A26: 예천048 | B26: 4790025027103300004 | C26: 경상북도 예천군 | D26: 예천읍 | E26: 대심리 | F26: 330-4답 | G26: 답 | H26: 2192.954703 | I26: 2192.9547 | J26: 1-900 | K26: 16 | L26: 14 | M26: 진흥구역
A27: 예천048 | B27: 4790025027103300005 | C27: 경상북도 예천군 | D27: 예천읍 | E27: 대심리 | F27: 330-5도 | G27: 도로 | H27: 35.36523847 | I27: 35.3652 | J27: 1-900 | K27: 16 | L27: 14 | M27: 진흥구역
A28: 예천048 | B28: 4790025027103300006 | C28: 경상북도 예천군 | D28: 예천읍 | E28: 대심리 | F28: 330-6도 | G28: 도로 | H28: 152.1487022 | I28: 152.1487 | J28: 1-900 | K28: 16 | L28: 14 | M28: 진흥구역
A29: 예천048 | B29: 4790025027103310001 | C29: 경상북도 예천군 | D29: 예천읍 | E29: 대심리 | F29: 331-1답 | G29: 답 | H29: 3714.456944 | I29: 3714.4569 | J29: 1-900 | K29: 16 | L29: 14 | M29: 진흥구역
A30: 예천048 | B30: 4790025027103310002 | C30: 경상북도 예천군 | D30: 예천읍 | E30: 대심리 | F30: 331-2답 | G30: 답 | H30: 1486.240401 | I30: 1486.2404 | J30: 1-900 | K30: 16 | L30: 14 | M30: 진흥구역
A31: 예천048 | B31: 4790025027103320000 | C31: 경상북도 예천군 | D31: 예천읍 | E31: 대심리 | F31: 332답 | G31: 답 | H31: 3960.133737 | I31: 3960.1337 | J31: 1-900 | K31: 16 | L31: 14 | M31: 진흥구역
A32: 예천048 | B32: 4790025027103330000 | C32: 경상북도 예천군 | D32: 예천읍 | E32: 대심리 | F32: 333답 | G32: 답 | H32: 1719.261768 | I32: 1719.2618 | J32: 1-900 | K32: 16 | L32: 14 | M32: 진흥구역
A33: 예천048 | B33: 4790025027103340000 | C33: 경상북도 예천군 | D33: 예천읍 | E33: 대심리 | F33: 334답 | G33: 답 | H33: 662.1992638 | I33: 662.1993 | J33: 1-900 | K33: 16 | L33: 14 | M33: 진흥구역
A34: 예천048 | B34: 4790025027103350000 | C34: 경상북도 예천군 | D34: 예천읍 | E34: 대심리 | F34: 335답 | G34: 답 | H34: 564.0740135 | I34: 564.074 | J34: 1-900 | K34: 16 | L34: 14 | M34: 진흥구역
A35: 예천048 | B35: 4790025027103360000 | C35: 경상북도 예천군 | D35: 예천읍 | E35: 대심리 | F35: 336답 | G35: 답 | H35: 2507.217411 | I35: 2507.2174 | J35: 1-900 | K35: 16 | L35: 14 | M35: 진흥구역
A36: 예천048 | B36: 4790025027103370001 | C36: 경상북도 예천군 | D36: 예천읍 | E36: 대심리 | F36: 337-1답 | G36: 답 | H36: 3204.688138 | I36: 3204.6881 | J36: 1-900 | K36: 16 | L36: 14 | M36: 진흥구역
A37: 예천048 | B37: 4790025027103370002 | C37: 경상북도 예천군 | D37: 예천읍 | E37: 대심리 | F37: 337-2답 | G37: 답 | H37: 1999.022396 | I37: 1999.0224 | J37: 1-900 | K37: 16 | L37: 14 | M37: 진흥구역
A38: 예천048 | B38: 4790025027103370003 | C38: 경상북도 예천군 | D38: 예천읍 | E38: 대심리 | F38: 337-3전 | G38: 전 | H38: 2628.559111 | I38: 2628.5591 | J38: 1-900 | K38: 16 | L38: 14 | M38: 진흥구역
A39: 예천048 | B39: 4790025027103370004 | C39: 경상북도 예천군 | D39: 예천읍 | E39: 대심리 | F39: 337-4답 | G39: 답 | H39: 614.5996699 | I39: 614.5997 | J39: 1-900 | K39: 16 | L39: 14 | M39: 진흥구역
A40: 예천048 | B40: 4790025027103370005 | C40: 경상북도 예천군 | D40: 예천읍 | E40: 대심리 | F40: 337-5도 | G40: 도로 | H40: 424.970285 | I40: 424.9703 | J40: 1-900 | K40: 16 | L40: 14 | M40: 진흥구역
A41: 예천048 | B41: 4790025027103370006 | C41: 경상북도 예천군 | D41: 예천읍 | E41: 대심리 | F41: 337-6도 | G41: 도로 | H41: 450.7519448 | I41: 450.7519 | J41: 1-900 | K41: 16 | L41: 14 | M41: 진흥구역
A42: 예천048 | B42: 4790025027103370007 | C42: 경상북도 예천군 | D42: 예천읍 | E42: 대심리 | F42: 337-7도 | G42: 도로 | H42: 646.0525701 | I42: 646.0526 | J42: 1-900 | K42: 16 | L42: 14 | M42: 진흥구역
A43: 예천048 | B43: 4790025027103370008 | C43: 경상북도 예천군 | D43: 예천읍 | E43: 대심리 | F43: 337-8도 | G43: 도로 | H43: 574.8247183 | I43: 574.8247 | J43: 1-900 | K43: 16 | L43: 14 | M43: 진흥구역
A44: 예천048 | B44: 4790025027103370009 | C44: 경상북도 예천군 | D44: 예천읍 | E44: 대심리 | F44: 337-9도 | G44: 도로 | H44: 119.231633 | I44: 119.2316 | J44: 1-900 | K44: 16 | L44: 14 | M44: 진흥구역
A45: 예천048 | B45: 4790025027103370010 | C45: 경상북도 예천군 | D45: 예천읍 | E45: 대심리 | F45: 337-10도 | G45: 도로 | H45: 97.25855126 | I45: 97.2586 | J45: 1-900 | K45: 16 | L45: 14 | M45: 진흥구역
A46: 예천048 | B46: 4790025027103370011 | C46: 경상북도 예천군 | D46: 예천읍 | E46: 대심리 | F46: 337-11답 | G46: 답 | H46: 218.9878611 | I46: 218.9879 | J46: 1-900 | K46: 16 | L46: 14 | M46: 진흥구역
A47: 예천048 | B47: 4790025027103380000 | C47: 경상북도 예천군 | D47: 예천읍 | E47: 대심리 | F47: 338답 | G47: 답 | H47: 2662.193708 | I47: 2662.1937 | J47: 1-900 | K47: 16 | L47: 14 | M47: 진흥구역
A48: 예천048 | B48: 4790025027103380001 | C48: 경상북도 예천군 | D48: 예천읍 | E48: 대심리 | F48: 338-1 답 | G48: 답 | H48: 111.3268723 | I48: 111.3269 | J48: 1-900 | K48: 16 | L48: 14 | M48: 진흥구역
A49: 예천048 | B49: 4790025027103390004 | C49: 경상북도 예천군 | D49: 예천읍 | E49: 대심리 | F49: 339-4답 | G49: 답 | H49: 2583.707408 | I49: 2583.7074 | J49: 1-900 | K49: 16 | L49: 14 | M49: 진흥구역
A50: 예천048 | B50: 4790025027103390005 | C50: 경상북도 예천군 | D50: 예천읍 | E50: 대심리 | F50: 339-5답 | G50: 답 | H50: 2086.106765 | I50: 2086.1068 | J50: 1-900 | K50: 16 | L50: 14 | M50: 진흥구역
A51: 예천048 | B51: 4790025027103390006 | C51: 경상북도 예천군 | D51: 예천읍 | E51: 대심리 | F51: 339-6 답 | G51: 답 | H51: 79.80301883 | I51: 79.803 | J51: 1-900 | K51: 16 | L51: 14 | M51: 진흥구역
A52: 예천048 | B52: 4790025027103400001 | C52: 경상북도 예천군 | D52: 예천읍 | E52: 대심리 | F52: 340-1 답 | G52: 답 | H52: 665.1034111 | I52: 665.1034 | J52: 1-900 | K52: 16 | L52: 14 | M52: 진흥구역
A53: 예천048 | B53: 4790025027103400005 | C53: 경상북도 예천군 | D53: 예천읍 | E53: 대심리 | F53: 340-5대 | G53: 대지 | H53: 145.3268558 | I53: 145.3269 | J53: 1-900 | K53: 16 | L53: 14 | M53: 진흥구역
A54: 예천048 | B54: 4790025027103400006 | C54: 경상북도 예천군 | D54: 예천읍 | E54: 대심리 | F54: 340-6도 | G54: 도로 | H54: 187.6282041 | I54: 187.6282 | J54: 1-900 | K54: 16 | L54: 14 | M54: 진흥구역
A55: 예천048 | B55: 4790025027103400007 | C55: 경상북도 예천군 | D55: 예천읍 | E55: 대심리 | F55: 340-7답 | G55: 답 | H55: 160.9265527 | I55: 160.9266 | J55: 1-900 | K55: 16 | L55: 14 | M55: 진흥구역
A56: 예천048 | B56: 4790025027103400008 | C56: 경상북도 예천군 | D56: 예천읍 | E56: 대심리 | F56: 340-8대 | G56: 대지 | H56: 169.9293467 | I56: 169.9293 | J56: 1-900 | K56: 16 | L56: 14 | M56: 진흥구역
A57: 예천048 | B57: 4790025027103400009 | C57: 경상북도 예천군 | D57: 예천읍 | E57: 대심리 | F57: 340-9대 | G57: 대지 | H57: 143.4947187 | I57: 143.4947 | J57: 1-900 | K57: 16 | L57: 14 | M57: 진흥구역
A58: 예천048 | B58: 4790025027103400010 | C58: 경상북도 예천군 | D58: 예천읍 | E58: 대심리 | F58: 340-10답 | G58: 답 | H58: 48.84637737 | I58: 48.8464 | J58: 1-900 | K58: 16 | L58: 14 | M58: 진흥구역
A59: 예천048 | B59: 4790025027103400011 | C59: 경상북도 예천군 | D59: 예천읍 | E59: 대심리 | F59: 340-11도 | G59: 도로 | H59: 25.49051595 | I59: 25.4905 | J59: 1-900 | K59: 16 | L59: 14 | M59: 진흥구역
A60: 예천048 | B60: 4790025027103400012 | C60: 경상북도 예천군 | D60: 예천읍 | E60: 대심리 | F60: 340-12도 | G60: 도로 | H60: 8.642059999 | I60: 8.6421 | J60: 1-900 | K60: 16 | L60: 14 | M60: 진흥구역
A61: 예천048 | B61: 4790025027103400013 | C61: 경상북도 예천군 | D61: 예천읍 | E61: 대심리 | F61: 340-13 답 | G61: 답 | H61: 29.1597275 | I61: 29.1597 | J61: 1-900 | K61: 16 | L61: 14 | M61: 진흥구역
A62: 예천048 | B62: 4790025027103400014 | C62: 경상북도 예천군 | D62: 예천읍 | E62: 대심리 | F62: 340-14 답 | G62: 답 | H62: 47.58806497 | I62: 47.5881 | J62: 1-900 | K62: 16 | L62: 14 | M62: 진흥구역
A63: 예천048 | B63: 4790025027103410001 | C63: 경상북도 예천군 | D63: 예천읍 | E63: 대심리 | F63: 341-1답 | G63: 답 | H63: 2489.920012 | I63: 2489.92 | J63: 1-900 | K63: 16 | L63: 14 | M63: 진흥구역
A64: 예천048 | B64: 4790025027103410002 | C64: 경상북도 예천군 | D64: 예천읍 | E64: 대심리 | F64: 341-2도 | G64: 도로 | H64: 359.3712453 | I64: 359.3712 | J64: 1-900 | K64: 16 | L64: 14 | M64: 진흥구역
A65: 예천048 | B65: 4790025027103410003 | C65: 경상북도 예천군 | D65: 예천읍 | E65: 대심리 | F65: 341-3도 | G65: 도로 | H65: 400.3140141 | I65: 400.314 | J65: 1-900 | K65: 16 | L65: 14 | M65: 진흥구역
A66: 예천048 | B66: 4790025027103420000 | C66: 경상북도 예천군 | D66: 예천읍 | E66: 대심리 | F66: 342답 | G66: 답 | H66: 1478.208912 | I66: 1478.2089 | J66: 1-900 | K66: 16 | L66: 14 | M66: 진흥구역
A67: 예천048 | B67: 4790025027103430001 | C67: 경상북도 예천군 | D67: 예천읍 | E67: 대심리 | F67: 343-1대 | G67: 대지 | H67: 262.2710825 | I67: 262.2711 | J67: 1-900 | K67: 16 | L67: 14 | M67: 진흥구역
A68: 예천048 | B68: 4790025027103430005 | C68: 경상북도 예천군 | D68: 예천읍 | E68: 대심리 | F68: 343-5도 | G68: 도로 | H68: 35.92636342 | I68: 35.9264 | J68: 1-900 | K68: 16 | L68: 14 | M68: 진흥구역
A69: 예천048 | B69: 4790025027103430006 | C69: 경상북도 예천군 | D69: 예천읍 | E69: 대심리 | F69: 343-6도 | G69: 도로 | H69: 27.40682744 | I69: 27.4068 | J69: 1-900 | K69: 16 | L69: 14 | M69: 진흥구역
A70: 예천048 | B70: 4790025027103430007 | C70: 경상북도 예천군 | D70: 예천읍 | E70: 대심리 | F70: 343-7답 | G70: 답 | H70: 33.74187302 | I70: 33.7419 | J70: 1-900 | K70: 16 | L70: 14 | M70: 진흥구역
A71: 예천048 | B71: 4790025027103430008 | C71: 경상북도 예천군 | D71: 예천읍 | E71: 대심리 | F71: 343-8대 | G71: 대지 | H71: 212.0512061 | I71: 212.0512 | J71: 1-900 | K71: 16 | L71: 14 | M71: 진흥구역
A72: 예천048 | B72: 4790025027103430009 | C72: 경상북도 예천군 | D72: 예천읍 | E72: 대심리 | F72: 343-9대 | G72: 대지 | H72: 163.0119627 | I72: 163.012 | J72: 1-900 | K72: 16 | L72: 14 | M72: 진흥구역
A73: 예천048 | B73: 4790025027103440001 | C73: 경상북도 예천군 | D73: 예천읍 | E73: 대심리 | F73: 344-1 구 | G73: 구거 | H73: 113.5589864 | I73: 113.559 | J73: 1-900 | K73: 16 | L73: 14 | M73: 진흥구역
A74: 예천048 | B74: 4790025027103440005 | C74: 경상북도 예천군 | D74: 예천읍 | E74: 대심리 | F74: 344-5전 | G74: 전 | H74: 1085.200027 | I74: 1085.2 | J74: 1-900 | K74: 16 | L74: 14 | M74: 진흥구역
A75: 예천048 | B75: 4790025027103440007 | C75: 경상북도 예천군 | D75: 예천읍 | E75: 대심리 | F75: 344-7 전 | G75: 전 | H75: 192.9980566 | I75: 192.9981 | J75: 1-900 | K75: 16 | L75: 14 | M75: 진흥구역
A76: 예천048 | B76: 4790025027103450000 | C76: 경상북도 예천군 | D76: 예천읍 | E76: 대심리 | F76: 345전 | G76: 전 | H76: 3563.081849 | I76: 3563.0818 | J76: 1-900 | K76: 16 | L76: 14 | M76: 진흥구역
A77: 예천048 | B77: 4790025027103450001 | C77: 경상북도 예천군 | D77: 예천읍 | E77: 대심리 | F77: 345-1대 | G77: 대지 | H77: 489.5669998 | I77: 489.567 | J77: 1-900 | K77: 16 | L77: 14 | M77: 진흥구역
A78: 예천048 | B78: 4790025027103450002 | C78: 경상북도 예천군 | D78: 예천읍 | E78: 대심리 | F78: 345-2대 | G78: 대지 | H78: 425.3154212 | I78: 425.3154 | J78: 1-900 | K78: 16 | L78: 14 | M78: 진흥구역
A79: 예천048 | B79: 4790025027103450003 | C79: 경상북도 예천군 | D79: 예천읍 | E79: 대심리 | F79: 345-3 전 | G79: 전 | H79: 277.5245688 | I79: 277.5246 | J79: 1-900 | K79: 16 | L79: 14 | M79: 진흥구역
A80: 예천048 | B80: 4790025027103470000 | C80: 경상북도 예천군 | D80: 예천읍 | E80: 대심리 | F80: 347 답 | G80: 답 | H80: 6891.782804 | I80: 6891.7828 | J80: 1-900 | K80: 16 | L80: 14 | M80: 진흥구역
A81: 예천048 | B81: 4790025027103470001 | C81: 경상북도 예천군 | D81: 예천읍 | E81: 대심리 | F81: 347-1 답 | G81: 답 | H81: 267.4172921 | I81: 267.4173 | J81: 1-900 | K81: 16 | L81: 14 | M81: 진흥구역
A82: 예천048 | B82: 4790025027103470002 | C82: 경상북도 예천군 | D82: 예천읍 | E82: 대심리 | F82: 347-2 답 | G82: 답 | H82: 144.6264571 | I82: 144.6265 | J82: 1-900 | K82: 16 | L82: 14 | M82: 진흥구역
A83: 예천048 | B83: 4790025027103480000 | C83: 경상북도 예천군 | D83: 예천읍 | E83: 대심리 | F83: 348답 | G83: 답 | H83: 507.5018626 | I83: 507.5019 | J83: 1-900 | K83: 16 | L83: 14 | M83: 진흥구역
A84: 예천048 | B84: 4790025027103490000 | C84: 경상북도 예천군 | D84: 예천읍 | E84: 대심리 | F84: 349답 | G84: 답 | H84: 1675.028842 | I84: 1675.0288 | J84: 1-900 | K84: 16 | L84: 14 | M84: 진흥구역
A85: 예천048 | B85: 4790025027103490001 | C85: 경상북도 예천군 | D85: 예천읍 | E85: 대심리 | F85: 349-1도 | G85: 도로 | H85: 18.07867893 | I85: 18.0787 | J85: 1-900 | K85: 16 | L85: 14 | M85: 진흥구역
A86: 예천048 | B86: 4790025027103500002 | C86: 경상북도 예천군 | D86: 예천읍 | E86: 대심리 | F86: 350-2답 | G86: 답 | H86: 1331.565528 | I86: 1331.5655 | J86: 1-900 | K86: 16 | L86: 14 | M86: 진흥구역
A87: 예천048 | B87: 4790025027103500005 | C87: 경상북도 예천군 | D87: 예천읍 | E87: 대심리 | F87: 350-5답 | G87: 답 | H87: 628.4036463 | I87: 628.4036 | J87: 1-900 | K87: 16 | L87: 14 | M87: 진흥구역
A88: 예천048 | B88: 4790025027103520003 | C88: 경상북도 예천군 | D88: 예천읍 | E88: 대심리 | F88: 352-3답 | G88: 답 | H88: 1053.70232 | I88: 1053.7023 | J88: 1-900 | K88: 16 | L88: 14 | M88: 진흥구역
A89: 예천048 | B89: 4790025027103520004 | C89: 경상북도 예천군 | D89: 예천읍 | E89: 대심리 | F89: 352-4도 | G89: 도로 | H89: 4.09330699 | I89: 4.0933 | J89: 1-900 | K89: 16 | L89: 14 | M89: 진흥구역
A90: 예천048 | B90: 4790025027103540002 | C90: 경상북도 예천군 | D90: 예천읍 | E90: 대심리 | F90: 354-2답 | G90: 답 | H90: 1822.239085 | I90: 1822.2391 | J90: 1-900 | K90: 16 | L90: 14 | M90: 진흥구역
A91: 예천048 | B91: 4790025027103550000 | C91: 경상북도 예천군 | D91: 예천읍 | E91: 대심리 | F91: 355답 | G91: 답 | H91: 1993.833199 | I91: 1993.8332 | J91: 1-900 | K91: 16 | L91: 14 | M91: 진흥구역
A92: 예천048 | B92: 4790025027103560000 | C92: 경상북도 예천군 | D92: 예천읍 | E92: 대심리 | F92: 356답 | G92: 답 | H92: 2413.215544 | I92: 2413.2155 | J92: 1-900 | K92: 16 | L92: 14 | M92: 진흥구역
A93: 예천048 | B93: 4790025027103570001 | C93: 경상북도 예천군 | D93: 예천읍 | E93: 대심리 | F93: 357-1답 | G93: 답 | H93: 1059.832662 | I93: 1059.8327 | J93: 1-900 | K93: 16 | L93: 14 | M93: 진흥구역
A94: 예천048 | B94: 4790025027103580004 | C94: 경상북도 예천군 | D94: 예천읍 | E94: 대심리 | F94: 358-4답 | G94: 답 | H94: 1414.650615 | I94: 1414.6506 | J94: 1-900 | K94: 16 | L94: 14 | M94: 진흥구역
A95: 예천048 | B95: 4790025027103590004 | C95: 경상북도 예천군 | D95: 예천읍 | E95: 대심리 | F95: 359-4답 | G95: 답 | H95: 481.4698696 | I95: 481.4699 | J95: 1-900 | K95: 16 | L95: 14 | M95: 진흥구역
A96: 예천048 | B96: 4790025027103600003 | C96: 경상북도 예천군 | D96: 예천읍 | E96: 대심리 | F96: 360-3답 | G96: 답 | H96: 1956.751867 | I96: 1956.7519 | J96: 1-900 | K96: 16 | L96: 14 | M96: 진흥구역
A97: 예천048 | B97: 4790025027103610000 | C97: 경상북도 예천군 | D97: 예천읍 | E97: 대심리 | F97: 361답 | G97: 답 | H97: 529.3862286 | I97: 529.3862 | J97: 1-900 | K97: 16 | L97: 14 | M97: 진흥구역
A98: 예천048 | B98: 4790025027103620004 | C98: 경상북도 예천군 | D98: 예천읍 | E98: 대심리 | F98: 362-4답 | G98: 답 | H98: 1838.738448 | I98: 1838.7384 | J98: 1-900 | K98: 16 | L98: 14 | M98: 진흥구역
A99: 예천048 | B99: 4790025027103630001 | C99: 경상북도 예천군 | D99: 예천읍 | E99: 대심리 | F99: 363-1답 | G99: 답 | H99: 1118.43197 | I99: 1118.432 | J99: 1-900 | K99: 16 | L99: 14 | M99: 진흥구역
A100: 예천048 | B100: 4790025027103630008 | C100: 경상북도 예천군 | D100: 예천읍 | E100: 대심리 | F100: 363-8답 | G100: 답 | H100: 1916.106076 | I100: 1916.1061 | J100: 1-900 | K100: 16 | L100: 14 | M100: 진흥구역
A101: 예천048 | B101: 4790025027103640001 | C101: 경상북도 예천군 | D101: 예천읍 | E101: 대심리 | F101: 364-1답 | G101: 답 | H101: 1577.743634 | I101: 1577.7436 | J101: 1-900 | K101: 16 | L101: 14 | M101: 진흥구역
A102: 예천048 | B102: 4790025027103640002 | C102: 경상북도 예천군 | D102: 예천읍 | E102: 대심리 | F102: 364-2대 | G102: 대지 | H102: 568.7621984 | I102: 568.7622 | J102: 1-900 | K102: 16 | L102: 14 | M102: 진흥구역
A103: 예천048 | B103: 4790025027103650001 | C103: 경상북도 예천군 | D103: 예천읍 | E103: 대심리 | F103: 365-1대 | G103: 대지 | H103: 2132.582187 | I103: 2132.5822 | J103: 1-900 | K103: 16 | L103: 14 | M103: 진흥구역
A104: 예천048 | B104: 4790025027103650002 | C104: 경상북도 예천군 | D104: 예천읍 | E104: 대심리 | F104: 365-2답 | G104: 답 | H104: 88.66781135 | I104: 88.6678 | J104: 1-900 | K104: 16 | L104: 14 | M104: 진흥구역
A105: 예천048 | B105: 4790025027103650003 | C105: 경상북도 예천군 | D105: 예천읍 | E105: 대심리 | F105: 365-3도 | G105: 도로 | H105: 283.241459 | I105: 283.2415 | J105: 1-900 | K105: 16 | L105: 14 | M105: 진흥구역
A106: 예천048 | B106: 4790025027103650004 | C106: 경상북도 예천군 | D106: 예천읍 | E106: 대심리 | F106: 365-4도 | G106: 도로 | H106: 248.823961 | I106: 248.824 | J106: 1-900 | K106: 16 | L106: 14 | M106: 진흥구역
A107: 예천048 | B107: 4790025027103650005 | C107: 경상북도 예천군 | D107: 예천읍 | E107: 대심리 | F107: 365-5답 | G107: 답 | H107: 43.45664641 | I107: 43.4566 | J107: 1-900 | K107: 16 | L107: 14 | M107: 진흥구역
A108: 예천048 | B108: 4790025027103660000 | C108: 경상북도 예천군 | D108: 예천읍 | E108: 대심리 | F108: 366답 | G108: 답 | H108: 1451.239159 | I108: 1451.2392 | J108: 1-900 | K108: 16 | L108: 14 | M108: 진흥구역
A109: 예천048 | B109: 4790025027103660001 | C109: 경상북도 예천군 | D109: 예천읍 | E109: 대심리 | F109: 366-1대 | G109: 대지 | H109: 346.2812484 | I109: 346.2812 | J109: 1-900 | K109: 16 | L109: 14 | M109: 진흥구역
A110: 예천048 | B110: 4790025027103660002 | C110: 경상북도 예천군 | D110: 예천읍 | E110: 대심리 | F110: 366-2답 | G110: 답 | H110: 1999.188542 | I110: 1999.1885 | J110: 1-900 | K110: 16 | L110: 14 | M110: 진흥구역
A111: 예천048 | B111: 4790025027103660003 | C111: 경상북도 예천군 | D111: 예천읍 | E111: 대심리 | F111: 366-3답 | G111: 답 | H111: 5236.750369 | I111: 5236.7504 | J111: 1-900 | K111: 16 | L111: 14 | M111: 진흥구역
A112: 예천048 | B112: 4790025027103660004 | C112: 경상북도 예천군 | D112: 예천읍 | E112: 대심리 | F112: 366-4답 | G112: 답 | H112: 2017.388377 | I112: 2017.3884 | J112: 1-900 | K112: 16 | L112: 14 | M112: 진흥구역
A113: 예천048 | B113: 4790025027103660005 | C113: 경상북도 예천군 | D113: 예천읍 | E113: 대심리 | F113: 366-5구 | G113: 구거 | H113: 1099.083385 | I113: 1099.0834 | J113: 1-900 | K113: 16 | L113: 14 | M113: 진흥구역
A114: 예천048 | B114: 4790025027103660006 | C114: 경상북도 예천군 | D114: 예천읍 | E114: 대심리 | F114: 366-6도 | G114: 도로 | H114: 42.75240791 | I114: 42.7524 | J114: 1-900 | K114: 16 | L114: 14 | M114: 진흥구역
A115: 예천048 | B115: 4790025027103660007 | C115: 경상북도 예천군 | D115: 예천읍 | E115: 대심리 | F115: 366-7도 | G115: 도로 | H115: 247.4091311 | I115: 247.4091 | J115: 1-900 | K115: 16 | L115: 14 | M115: 진흥구역
A116: 예천048 | B116: 4790025027103660008 | C116: 경상북도 예천군 | D116: 예천읍 | E116: 대심리 | F116: 366-8답 | G116: 답 | H116: 661.4231864 | I116: 661.4232 | J116: 1-900 | K116: 16 | L116: 14 | M116: 진흥구역
A117: 예천048 | B117: 4790025027103660009 | C117: 경상북도 예천군 | D117: 예천읍 | E117: 대심리 | F117: 366-9도 | G117: 도로 | H117: 159.7956592 | I117: 159.7957 | J117: 1-900 | K117: 16 | L117: 14 | M117: 진흥구역
A118: 예천048 | B118: 4790025027103660010 | C118: 경상북도 예천군 | D118: 예천읍 | E118: 대심리 | F118: 366-10답 | G118: 답 | H118: 656.5234248 | I118: 656.5234 | J118: 1-900 | K118: 16 | L118: 14 | M118: 진흥구역
A119: 예천048 | B119: 4790025027103660011 | C119: 경상북도 예천군 | D119: 예천읍 | E119: 대심리 | F119: 366-11답 | G119: 답 | H119: 998.1355451 | I119: 998.1355 | J119: 1-900 | K119: 16 | L119: 14 | M119: 진흥구역
A120: 예천048 | B120: 4790025027103660012 | C120: 경상북도 예천군 | D120: 예천읍 | E120: 대심리 | F120: 366-12 대 | G120: 대지 | H120: 1239.929366 | I120: 1239.9294 | J120: 1-900 | K120: 16 | L120: 14 | M120: 진흥구역
A121: 예천048 | B121: 4790025027103670001 | C121: 경상북도 예천군 | D121: 예천읍 | E121: 대심리 | F121: 367-1철 | G121: 철도용지 | H121: 165.0136177 | I121: 165.0136 | J121: 1-6 | K121: 2 | L121: 6 | M121: 진흥구역
A122: 예천048 | B122: 4790025027103670006 | C122: 경상북도 예천군 | D122: 예천읍 | E122: 대심리 | F122: 367-6답 | G122: 답 | H122: 173.6963023 | I122: 173.6963 | J122: 1-900 | K122: 16 | L122: 14 | M122: 진흥구역
A123: 예천048 | B123: 4790025027103680001 | C123: 경상북도 예천군 | D123: 예천읍 | E123: 대심리 | F123: 368-1답 | G123: 답 | H123: 1734.424381 | I123: 1734.4244 | J123: 1-900 | K123: 16 | L123: 14 | M123: 진흥구역
A124: 예천048 | B124: 4790025027103680002 | C124: 경상북도 예천군 | D124: 예천읍 | E124: 대심리 | F124: 368-2철 | G124: 철도용지 | H124: 498.2734475 | I124: 498.2734 | J124: 1-6 | K124: 2 | L124: 6 | M124: 진흥구역
A125: 예천048 | B125: 4790025027103680005 | C125: 경상북도 예천군 | D125: 예천읍 | E125: 대심리 | F125: 368-5답 | G125: 답 | H125: 100.7790029 | I125: 100.779 | J125: 1-900 | K125: 16 | L125: 14 | M125: 진흥구역
A126: 예천048 | B126: 4790025027107380002 | C126: 경상북도 예천군 | D126: 예천읍 | E126: 대심리 | F126: 738-2답 | G126: 답 | H126: 268.407137 | I126: 268.4071 | J126: 1-900 | K126: 16 | L126: 14 | M126: 진흥구역
A127: 예천048 | B127: 4790025027107380003 | C127: 경상북도 예천군 | D127: 예천읍 | E127: 대심리 | F127: 738-3도 | G127: 도로 | H127: 57.29906143 | I127: 57.2991 | J127: 1-900 | K127: 16 | L127: 14 | M127: 진흥구역
A128: 예천048 | B128: 4790025027107380004 | C128: 경상북도 예천군 | D128: 예천읍 | E128: 대심리 | F128: 738-4도 | G128: 도로 | H128: 387.9222168 | I128: 387.9222 | J128: 1-900 | K128: 16 | L128: 14 | M128: 진흥구역
A129: 예천048 | B129: 4790025027107380005 | C129: 경상북도 예천군 | D129: 예천읍 | E129: 대심리 | F129: 738-5도 | G129: 도로 | H129: 187.7358771 | I129: 187.7359 | J129: 1-900 | K129: 16 | L129: 14 | M129: 진흥구역
A130: 예천048 | B130: 4790025027107380007 | C130: 경상북도 예천군 | D130: 예천읍 | E130: 대심리 | F130: 738-7도 | G130: 도로 | H130: 542.5005951 | I130: 542.5006 | J130: 1-900 | K130: 16 | L130: 14 | M130: 진흥구역
A131: 예천048 | B131: 4790025027107380008 | C131: 경상북도 예천군 | D131: 예천읍 | E131: 대심리 | F131: 738-8답 | G131: 답 | H131: 74.92881037 | I131: 74.9288 | J131: 1-900 | K131: 16 | L131: 14 | M131: 진흥구역
A132: 예천048 | B132: 4790025027107380009 | C132: 경상북도 예천군 | D132: 예천읍 | E132: 대심리 | F132: 738-9도 | G132: 도로 | H132: 52.73260191 | I132: 52.7326 | J132: 1-900 | K132: 16 | L132: 14 | M132: 진흥구역
A133: 예천048 | B133: 4790025027107390002 | C133: 경상북도 예천군 | D133: 예천읍 | E133: 대심리 | F133: 739-2답 | G133: 답 | H133: 1550.588514 | I133: 1550.5885 | J133: 1-900 | K133: 16 | L133: 14 | M133: 진흥구역
A134: 예천048 | B134: 4790025027107390003 | C134: 경상북도 예천군 | D134: 예천읍 | E134: 대심리 | F134: 739-3도 | G134: 도로 | H134: 102.5291953 | I134: 102.5292 | J134: 1-900 | K134: 16 | L134: 14 | M134: 진흥구역
A135: 예천048 | B135: 4790025027107390004 | C135: 경상북도 예천군 | D135: 예천읍 | E135: 대심리 | F135: 739-4도 | G135: 도로 | H135: 54.02866689 | I135: 54.0287 | J135: 1-900 | K135: 16 | L135: 14 | M135: 진흥구역
A136: 예천048 | B136: 4790025027107390005 | C136: 경상북도 예천군 | D136: 예천읍 | E136: 대심리 | F136: 739-5도 | G136: 도로 | H136: 385.0874873 | I136: 385.0875 | J136: 1-900 | K136: 16 | L136: 14 | M136: 진흥구역
A137: 예천048 | B137: 4790025027107390006 | C137: 경상북도 예천군 | D137: 예천읍 | E137: 대심리 | F137: 739-6도 | G137: 도로 | H137: 63.49851984 | I137: 63.4985 | J137: 1-900 | K137: 16 | L137: 14 | M137: 진흥구역
A138: 예천048 | B138: 4790025027107400002 | C138: 경상북도 예천군 | D138: 예천읍 | E138: 대심리 | F138: 740-2전 | G138: 전 | H138: 796.6230565 | I138: 796.6231 | J138: 1-900 | K138: 16 | L138: 14 | M138: 진흥구역
A139: 예천048 | B139: 4790025027107400003 | C139: 경상북도 예천군 | D139: 예천읍 | E139: 대심리 | F139: 740-3도 | G139: 도로 | H139: 243.6509779 | I139: 243.651 | J139: 1-900 | K139: 16 | L139: 14 | M139: 진흥구역
A140: 예천048 | B140: 4790025027107400004 | C140: 경상북도 예천군 | D140: 예천읍 | E140: 대심리 | F140: 740-4도 | G140: 도로 | H140: 115.2896678 | I140: 115.2897 | J140: 1-900 | K140: 16 | L140: 14 | M140: 진흥구역
A141: 예천048 | B141: 4790025027107400005 | C141: 경상북도 예천군 | D141: 예천읍 | E141: 대심리 | F141: 740-5답 | G141: 답 | H141: 139.0984158 | I141: 139.0984 | J141: 1-900 | K141: 16 | L141: 14 | M141: 진흥구역
A142: 예천048 | B142: 4790025027107400006 | C142: 경상북도 예천군 | D142: 예천읍 | E142: 대심리 | F142: 740-6도 | G142: 도로 | H142: 78.41771884 | I142: 78.4177 | J142: 1-900 | K142: 16 | L142: 14 | M142: 진흥구역
A143: 예천048 | B143: 4790025027107400007 | C143: 경상북도 예천군 | D143: 예천읍 | E143: 대심리 | F143: 740-7도 | G143: 도로 | H143: 42.19363091 | I143: 42.1936 | J143: 1-900 | K143: 16 | L143: 14 | M143: 진흥구역
A144: 예천048 | B144: 4790025027107400008 | C144: 경상북도 예천군 | D144: 예천읍 | E144: 대심리 | F144: 740-8도 | G144: 도로 | H144: 40.72414893 | I144: 40.7241 | J144: 1-900 | K144: 16 | L144: 14 | M144: 진흥구역
A145: 예천048 | B145: 4790025027107400009 | C145: 경상북도 예천군 | D145: 예천읍 | E145: 대심리 | F145: 740-9도 | G145: 도로 | H145: 10.74984449 | I145: 10.7498 | J145: 1-900 | K145: 16 | L145: 14 | M145: 진흥구역
A146: 예천048 | B146: 4790025027107410000 | C146: 경상북도 예천군 | D146: 예천읍 | E146: 대심리 | F146: 741잡 | G146: 잡종지 | H146: 1891.429848 | I146: 1891.4298 | J146: 1-900 | K146: 16 | L146: 14 | M146: 진흥구역
A147: 예천048 | B147: 4790025027107410001 | C147: 경상북도 예천군 | D147: 예천읍 | E147: 대심리 | F147: 741-1전 | G147: 전 | H147: 939.7067822 | I147: 939.7068 | J147: 1-900 | K147: 16 | L147: 14 | M147: 진흥구역
A148: 예천048 | B148: 4790025027107420001 | C148: 경상북도 예천군 | D148: 예천읍 | E148: 대심리 | F148: 742-1대 | G148: 대지 | H148: 422.1135896 | I148: 422.1136 | J148: 1-900 | K148: 16 | L148: 14 | M148: 진흥구역
A149: 예천048 | B149: 4790025027107420002 | C149: 경상북도 예천군 | D149: 예천읍 | E149: 대심리 | F149: 742-2도 | G149: 도로 | H149: 287.7279479 | I149: 287.7279 | J149: 1-900 | K149: 16 | L149: 14 | M149: 진흥구역
A150: 예천048 | B150: 4790025027107420003 | C150: 경상북도 예천군 | D150: 예천읍 | E150: 대심리 | F150: 742-3도 | G150: 도로 | H150: 367.6792644 | I150: 367.6793 | J150: 1-900 | K150: 16 | L150: 14 | M150: 진흥구역
A151: 예천048 | B151: 4790025027107420004 | C151: 경상북도 예천군 | D151: 예천읍 | E151: 대심리 | F151: 742-4대 | G151: 대지 | H151: 437.6117727 | I151: 437.6118 | J151: 1-900 | K151: 16 | L151: 14 | M151: 진흥구역
A152: 예천048 | B152: 4790025027107610002 | C152: 경상북도 예천군 | D152: 예천읍 | E152: 대심리 | F152: 761-2전 | G152: 전 | H152: 1823.280342 | I152: 183.7909 | J152: 1-900 | K152: 16 | L152: 14 | M152: 진흥구역
A153: 예천048 | B153: 4790025027107610003 | C153: 경상북도 예천군 | D153: 예천읍 | E153: 대심리 | F153: 761-3도 | G153: 도로 | H153: 1197.154152 | I153: 1197.1542 | J153: 1-900 | K153: 16 | L153: 14 | M153: 진흥구역
A154: 예천048 | B154: 4790025027107610007 | C154: 경상북도 예천군 | D154: 예천읍 | E154: 대심리 | F154: 761-7도 | G154: 도로 | H154: 321.0198477 | I154: 79.4498 | J154: 1-900 | K154: 16 | L154: 14 | M154: 진흥구역
A155: 예천048 | B155: 4790025027107610010 | C155: 경상북도 예천군 | D155: 예천읍 | E155: 대심리 | F155: 761-10도 | G155: 도로 | H155: 20.84715499 | I155: 20.8472 | J155: 1-900 | K155: 16 | L155: 14 | M155: 진흥구역
A156: 예천048 | B156: 4790025027107610012 | C156: 경상북도 예천군 | D156: 예천읍 | E156: 대심리 | F156: 761-12 대 | G156: 대지 | H156: 1484.001322 | I156: 1484.0013 | J156: 1-900 | K156: 16 | L156: 14 | M156: 진흥구역
A157: 예천048 | B157: 4790025027107610015 | C157: 경상북도 예천군 | D157: 예천읍 | E157: 대심리 | F157: 761-15 전 | G157: 전 | H157: 182.0604581 | I157: 182.0605 | J157: 1-900 | K157: 16 | L157: 14 | M157: 진흥구역
A158: 예천048 | B158: 4790025027107630000 | C158: 경상북도 예천군 | D158: 예천읍 | E158: 대심리 | F158: 763임 | G158: 임야 | H158: 533.6084739 | I158: 170.269 | J158: 1-912 | K158: 16 | L158: 3 | M158: 진흥구역
A159: 예천048 | B159: 4790025027107640001 | C159: 경상북도 예천군 | D159: 예천읍 | E159: 대심리 | F159: 764-1답 | G159: 답 | H159: 1558.801266 | I159: 1558.8013 | J159: 1-900 | K159: 16 | L159: 14 | M159: 진흥구역
A160: 예천048 | B160: 4790025027107640004 | C160: 경상북도 예천군 | D160: 예천읍 | E160: 대심리 | F160: 764-4대 | G160: 대지 | H160: 1358.132556 | I160: 1358.1326 | J160: 1-900 | K160: 16 | L160: 14 | M160: 진흥구역
A161: 예천048 | B161: 4790025027107640006 | C161: 경상북도 예천군 | D161: 예천읍 | E161: 대심리 | F161: 764-6답 | G161: 답 | H161: 806.2214065 | I161: 806.2214 | J161: 1-900 | K161: 16 | L161: 14 | M161: 진흥구역
A162: 예천048 | B162: 4790025027107650002 | C162: 경상북도 예천군 | D162: 예천읍 | E162: 대심리 | F162: 765-2답 | G162: 답 | H162: 1370.265284 | I162: 1370.2653 | J162: 1-900 | K162: 16 | L162: 14 | M162: 진흥구역
A163: 예천048 | B163: 4790025027107650004 | C163: 경상북도 예천군 | D163: 예천읍 | E163: 대심리 | F163: 765-4답 | G163: 답 | H163: 24.79763196 | I163: 24.7976 | J163: 1-900 | K163: 16 | L163: 14 | M163: 진흥구역
A164: 예천048 | B164: 4790025027107650007 | C164: 경상북도 예천군 | D164: 예천읍 | E164: 대심리 | F164: 765-7답 | G164: 답 | H164: 1630.643174 | I164: 1630.6432 | J164: 1-900 | K164: 16 | L164: 14 | M164: 진흥구역
A165: 예천048 | B165: 4790025027107650009 | C165: 경상북도 예천군 | D165: 예천읍 | E165: 대심리 | F165: 765-9답 | G165: 답 | H165: 1629.783733 | I165: 1629.7837 | J165: 1-900 | K165: 16 | L165: 14 | M165: 진흥구역
A166: 예천048 | B166: 4790025027107650012 | C166: 경상북도 예천군 | D166: 예천읍 | E166: 대심리 | F166: 765-12도 | G166: 도로 | H166: 58.96439691 | I166: 58.9644 | J166: 1-900 | K166: 16 | L166: 14 | M166: 진흥구역
A167: 예천048 | B167: 4790025027107650013 | C167: 경상북도 예천군 | D167: 예천읍 | E167: 대심리 | F167: 765-13도 | G167: 도로 | H167: 55.21642388 | I167: 55.2164 | J167: 1-900 | K167: 16 | L167: 14 | M167: 진흥구역
A168: 예천048 | B168: 4790025027107660002 | C168: 경상북도 예천군 | D168: 예천읍 | E168: 대심리 | F168: 766-2대 | G168: 대지 | H168: 154.3700732 | I168: 154.3701 | J168: 1-900 | K168: 16 | L168: 14 | M168: 진흥구역
A169: 예천048 | B169: 4790025027107660003 | C169: 경상북도 예천군 | D169: 예천읍 | E169: 대심리 | F169: 766-3대 | G169: 대지 | H169: 476.8439122 | I169: 476.8439 | J169: 1-900 | K169: 16 | L169: 14 | M169: 진흥구역
A170: 예천048 | B170: 4790025027107670002 | C170: 경상북도 예천군 | D170: 예천읍 | E170: 대심리 | F170: 767-2답 | G170: 답 | H170: 30.57274146 | I170: 30.5727 | J170: 1-900 | K170: 16 | L170: 14 | M170: 진흥구역
A171: 예천048 | B171: 4790025027107670003 | C171: 경상북도 예천군 | D171: 예천읍 | E171: 대심리 | F171: 767-3답 | G171: 답 | H171: 6.26699499 | I171: 6.267 | J171: 1-900 | K171: 16 | L171: 14 | M171: 진흥구역
A172: 예천048 | B172: 4790025027107670004 | C172: 경상북도 예천군 | D172: 예천읍 | E172: 대심리 | F172: 767-4구 | G172: 구거 | H172: 10.00129699 | I172: 10.0013 | J172: 1-900 | K172: 16 | L172: 14 | M172: 진흥구역
A173: 예천048 | B173: 4790025027107680001 | C173: 경상북도 예천군 | D173: 예천읍 | E173: 대심리 | F173: 768-1전 | G173: 전 | H173: 83.31739289 | I173: 83.3174 | J173: 1-900 | K173: 16 | L173: 14 | M173: 진흥구역
A174: 예천048 | B174: 4790025027107680003 | C174: 경상북도 예천군 | D174: 예천읍 | E174: 대심리 | F174: 768-3구 | G174: 구거 | H174: 10.36132645 | I174: 10.3613 | J174: 1-900 | K174: 16 | L174: 14 | M174: 진흥구역
A175: 예천048 | B175: 4790025027107690001 | C175: 경상북도 예천군 | D175: 예천읍 | E175: 대심리 | F175: 769-1구 | G175: 구거 | H175: 48.02158291 | I175: 48.0216 | J175: 1-900 | K175: 16 | L175: 14 | M175: 진흥구역
A176: 예천048 | B176: 4790025027107690002 | C176: 경상북도 예천군 | D176: 예천읍 | E176: 대심리 | F176: 769-2구 | G176: 구거 | H176: 50.39660036 | I176: 50.3966 | J176: 1-900 | K176: 16 | L176: 14 | M176: 진흥구역
A177: 예천048 | B177: 4790025027107690005 | C177: 경상북도 예천군 | D177: 예천읍 | E177: 대심리 | F177: 769-5전 | G177: 전 | H177: 13.30488899 | I177: 13.3049 | J177: 1-900 | K177: 16 | L177: 14 | M177: 진흥구역
A178: 예천048 | B178: 4790025027107710005 | C178: 경상북도 예천군 | D178: 예천읍 | E178: 대심리 | F178: 771-5도 | G178: 도로 | H178: 92.62925431 | I178: 92.6293 | J178: 1-900 | K178: 16 | L178: 14 | M178: 진흥구역
A179: 예천048 | B179: 4790025027107720001 | C179: 경상북도 예천군 | D179: 예천읍 | E179: 대심리 | F179: 772-1구 | G179: 구거 | H179: 107.7090288 | I179: 107.709 | J179: 1-900 | K179: 16 | L179: 14 | M179: 진흥구역
A180: 예천048 | B180: 4790025027107730001 | C180: 경상북도 예천군 | D180: 예천읍 | E180: 대심리 | F180: 773-1도 | G180: 도로 | H180: 171.5219452 | I180: 171.5219 | J180: 1-900 | K180: 16 | L180: 14 | M180: 진흥구역
A181: 예천048 | B181: 4790025027107730002 | C181: 경상북도 예천군 | D181: 예천읍 | E181: 대심리 | F181: 773-2 대 | G181: 대지 | H181: 88.3529583 | I181: 88.353 | J181: 1-900 | K181: 16 | L181: 14 | M181: 진흥구역
A182: 예천048 | B182: 4790025027107730004 | C182: 경상북도 예천군 | D182: 예천읍 | E182: 대심리 | F182: 773-4도 | G182: 도로 | H182: 226.0124314 | I182: 226.0124 | J182: 1-900 | K182: 16 | L182: 14 | M182: 진흥구역
A183: 예천048 | B183: 4790025027107730005 | C183: 경상북도 예천군 | D183: 예천읍 | E183: 대심리 | F183: 773-5도 | G183: 도로 | H183: 129.1624427 | I183: 129.1624 | J183: 1-900 | K183: 16 | L183: 14 | M183: 진흥구역
A184: 예천048 | B184: 4790025027107730006 | C184: 경상북도 예천군 | D184: 예천읍 | E184: 대심리 | F184: 773-6도 | G184: 도로 | H184: 154.3005682 | I184: 154.3006 | J184: 1-900 | K184: 16 | L184: 14 | M184: 진흥구역
A185: 예천048 | B185: 4790025027107730007 | C185: 경상북도 예천군 | D185: 예천읍 | E185: 대심리 | F185: 773-7대 | G185: 대지 | H185: 372.0042959 | I185: 372.0043 | J185: 1-900 | K185: 16 | L185: 14 | M185: 진흥구역
A186: 예천048 | B186: 4790025027107730008 | C186: 경상북도 예천군 | D186: 예천읍 | E186: 대심리 | F186: 773-8도 | G186: 도로 | H186: 28.31551544 | I186: 28.3155 | J186: 1-900 | K186: 16 | L186: 14 | M186: 진흥구역
A187: 예천048 | B187: 4790025027107730009 | C187: 경상북도 예천군 | D187: 예천읍 | E187: 대심리 | F187: 773-9도 | G187: 도로 | H187: 116.4319368 | I187: 116.4319 | J187: 1-900 | K187: 16 | L187: 14 | M187: 진흥구역
A188: 예천048 | B188: 4790025027107730010 | C188: 경상북도 예천군 | D188: 예천읍 | E188: 대심리 | F188: 773-10도 | G188: 도로 | H188: 7.585527997 | I188: 7.5855 | J188: 1-900 | K188: 16 | L188: 14 | M188: 진흥구역
A189: 예천048 | B189: 4790025027107730011 | C189: 경상북도 예천군 | D189: 예천읍 | E189: 대심리 | F189: 773-11도 | G189: 도로 | H189: 13.90216498 | I189: 13.9022 | J189: 1-900 | K189: 16 | L189: 14 | M189: 진흥구역
A190: 예천048 | B190: 4790025027107730012 | C190: 경상북도 예천군 | D190: 예천읍 | E190: 대심리 | F190: 773-12도 | G190: 도로 | H190: 3.391543008 | I190: 3.3915 | J190: 1-900 | K190: 16 | L190: 14 | M190: 진흥구역
A191: 예천048 | B191: 4790025027107740002 | C191: 경상북도 예천군 | D191: 예천읍 | E191: 대심리 | F191: 774-2전 | G191: 전 | H191: 26.27055296 | I191: 26.2706 | J191: 1-900 | K191: 16 | L191: 14 | M191: 진흥구역
A192: 예천048 | B192: 4790025027107740003 | C192: 경상북도 예천군 | D192: 예천읍 | E192: 대심리 | F192: 774-3도 | G192: 도로 | H192: 23.50815646 | I192: 23.5082 | J192: 1-900 | K192: 16 | L192: 14 | M192: 진흥구역
A193: 예천048 | B193: 4790025027107740004 | C193: 경상북도 예천군 | D193: 예천읍 | E193: 대심리 | F193: 774-4도 | G193: 도로 | H193: 15.20594099 | I193: 15.2059 | J193: 1-900 | K193: 16 | L193: 14 | M193: 진흥구역
A194: 예천048 | B194: 4790025027107750000 | C194: 경상북도 예천군 | D194: 예천읍 | E194: 대심리 | F194: 775답 | G194: 답 | H194: 3816.621165 | I194: 3816.6212 | J194: 1-900 | K194: 16 | L194: 14 | M194: 진흥구역
A195: 예천048 | B195: 4790025027107750001 | C195: 경상북도 예천군 | D195: 예천읍 | E195: 대심리 | F195: 775-1도 | G195: 도로 | H195: 209.5445676 | I195: 209.5446 | J195: 1-900 | K195: 16 | L195: 14 | M195: 진흥구역
A196: 예천048 | B196: 4790025027107760002 | C196: 경상북도 예천군 | D196: 예천읍 | E196: 대심리 | F196: 776-2구 | G196: 구거 | H196: 31.48244893 | I196: 31.4824 | J196: 1-900 | K196: 16 | L196: 14 | M196: 진흥구역
A197: 예천048 | B197: 4790025027107770006 | C197: 경상북도 예천군 | D197: 예천읍 | E197: 대심리 | F197: 777-6구 | G197: 구거 | H197: 168.2528051 | I197: 168.2528 | J197: 1-900 | K197: 16 | L197: 14 | M197: 진흥구역
A198: 예천048 | B198: 4790025027107780002 | C198: 경상북도 예천군 | D198: 예천읍 | E198: 대심리 | F198: 778-2 철 | G198: 철도용지 | H198: 994.5191654 | I198: 994.5192 | J198: 1-6 | K198: 2 | L198: 6 | M198: 진흥구역
A199: 예천048 | B199: 4790025027107780008 | C199: 경상북도 예천군 | D199: 예천읍 | E199: 대심리 | F199: 778-8구 | G199: 구거 | H199: 12.18708896 | I199: 12.1871 | J199: 1-900 | K199: 16 | L199: 14 | M199: 진흥구역
A200: 예천048 | B200: 4790025027107820002 | C200: 경상북도 예천군 | D200: 예천읍 | E200: 대심리 | F200: 782-2철 | G200: 철도용지 | H200: 3562.036853 | I200: 3562.0369 | J200: 1-6 | K200: 2 | L200: 6 | M200: 진흥구역
... 4300 more rows
